Workbook

Sheet v1-mascara
C2: Simulador Crédito Por Convenio
C5: Moneda | G5: PEN
C7: Monto Prestamo | G7: 78450
C9: Fecha Desembolso | G9: 1 | H9: 2 | I9: 2022
C11: Plazo (meses) | G11: 72
C13: TEA | G13: 10
C15: Descuento automatico por planilla | G15: 3
C17: Uso casillero | G17: 2
C19: Seguro Desgravamen | G19: 0.0009

Sheet v2-calculos
B2: SIMULADOR DE CUOTAS - CRÉDITO CONVENIOS
B5: Importe Solicitado | F5: ='v1-mascara'!G7 -> 78450 | J5: Fecha Desembolso | O5: =DATE('v1-mascara'!I9,'v1-mascara'!H8,'v1-mascara'!G9) -> 2021-12-01 | Q5: F_venc | R5: 2 | S5: Plazo_1
B6: Saldo de Capital | F6: =F5 -> 78450 | J6: Fecha Final de Gracia | O6: =DATE(YEAR(EDATE(O5,R6)),MONTH(EDATE(O5,R6)),R5) -> 2022-01-02 | Q6: P_gracia | R6: 1
B7: Saldo de Interes | F7: 0 | J7: Fecha de la 1° cuota | O7: =DATE(YEAR(EDATE(O6,1)),MONTH(EDATE(O6,1)),R5) -> 2022-02-02 | Q7: dia corte | R7: 30
B8: Tasa Anual (TEA) | F8: ='v1-mascara'!G13 -> 10 | G8: Tasa de Gracia | H8: 0 | J8: Fecha final de vencimiento | O8: =DATE(YEAR(EDATE(O6,F13)),MONTH(EDATE(O6,F13)),DAY(EDATE(O6,F13))) -> 2028-01-02
B9: Tasa de Seguro de Desgravámen | F9: ='v1-mascara'!G19:I19 -> 0.0009 | G9: 0 | H9: 0 | J9: Base | O9: 360
J10: Frecuencia pago en días | O10: 30
B11: Comisiones + Pago Casillero | F11: ='v1-mascara'!G17+'v1-mascara'!G15 -> 5 | J11: Tasa Equivalente | O11: =ROUND((((F8/100+1)^(1/(O9/O10))-1)*O9/O10)*100,6) -> 9.568969 | P11: tea conv. A tem luego nominal anual
J12: Días entre cuotas | O12: =(O8-O6)/F13 -> 30.43055556 | P12: dias promedio entre cuotas
B13: Plazo y Nro. Cuotas | F13: ='v1-mascara'!G11 -> 72 | G13: =IF(F16+ F17>0,VLOOKUP(F13,[1]Calculos!$A$3:$B$99,2,FALSE),F13) -> 72 | J13: Factor Aplicado | O13: =($O$11/100)/($O$9/$O$12) -> 0.008088584521 | P13: tem convertida de manera nominal a los dias entre cuotas
B14: Días de Gracia | F14: =O6-O5 -> 32 | J14: Factor Aplicado para la cuota | O14: =1/((1-((1+$O$13)^(-1*$F$13)))/$O$13) -> 0.01837807367 | P14: Factor de cuota (ok)
B15: (+/- 30 días antes de la fecha 1° cuota) | J15: Interes de Gracia | O15: =IF(F14>0,ROUND(F6*(((1+F8/100)^(ABS(F14)/O9))-1),4),ROUND(F6*(((1+F8/100)^(ABS(F14)/O9))-1),4) * -1) -> 667.453 | P15: Ok
B16: Mes de No Pago 1 | F16: 0 | J16: Saldo Interes +/- Interes Gracia | O16: =IF(F7 + O15>0,F7+ O15,0) -> 667.453
B17: Mes de No Pago 2 | F17: 0
B18: Mes Cuota Doble 1 | F18: 0 | J18: Comisión de Gracia Desgravamen (Primera Cuota) | O18: =IF(F14>0,ROUNDDOWN(F5 * F9/30*F14,2),0) -> 75.31
B19: Mes Cuota Doble 2 | F19: 0
H20: =REDONDEAR(SI(O(F16+ F17> 0,F18 + F19>0),REDONDEAR.MAS(O16/BUSCARV(F13,Calculos!$A$3:$G$99,7,FALSO),2),O16*$O$14),2)
H22: Con Factor | I22: Con Minicronograma | K22: Suavización | M22: Ultimo saldo de Principal | O22: =VLOOKUP(G13,$D$31:$Q$91,14,FALSE) - VLOOKUP(G13,$D$31:$S$91,16,FALSE) -> 
E23: Valor de cuota por dias de gracia | H23: =$O$16/($G$13*(1/((1+0)^($O$10/$O$9)))) -> 9.270180556 | I23: =O16/SUM(V32:INDIRECT(CONCATENATE("V",32+G13-1))) -> 11.12421667 | M23: Numero de Dias | O23: =O8-O6 -> 2191
E24: Valor de cuota por capital | H24: =ROUND(IF(OR(F16 + F17 > 0,F18 + F19>0), ROUNDUP(F6/VLOOKUP(F13,[1]Calculos!$A$3:$G$99,7,FALSE),2),F6*$O$14),2) -> 1441.76 | I24: Promedio | J24: Exceso Desgravamen | M24: Valor de Cuota Nivelada | O24: =ROUND(+O22/ROUND(1*(((1+F8/100)^(O23/O9))-1),4),2) -> 
E25: Seguro de Desgravamen (FPF) | H25: =ROUNDDOWN($F$5*$F$9,2) -> 70.6 | I25: =((H25*F13) + O18)/F13 -> 71.64597222 | J25: =I25-H25 -> 1.045972222 | M25: Factor Ajuste | O25: =O24*O14 ->  | Q25: Se copia el valor de la celda P26 solo en la primera corrida, siempre que sea mayor a cero
E26: Comisiones + Pago de Casillero | H26: =$F$11 -> 5 | M26: Exceso de Int + Gracia | O26: =SUM(R32:R46) -> 0 | P26: =ROUND(IF(F16+ F17> 0,ROUNDUP($O$26/VLOOKUP(F13,[1]Calculos!$A$3:$G$99,7,FALSE),2),$O$26*$O$14),2) -> 0 | Q26: 0
E28: Cuota | H28: =H23+H24+H25+H26 -> 1526.630181 | I28: =H23+H24+I25+H26 -> 1527.676153 | M28: Digite Factor de Ajuste Anterior mas El Actual | O28: 0.84 | R28: =-8.79+8.16-7.57+7.03-6.53+6.06-5.63+5.23-4.85+4.5-4.18+3.88-3.6+3.35-3.12+2.9-2.7+2.51-2.33+2.16-2+1.86-1.73+1.61-1.5+1.39-1.29+1.2-1.11+1.03-0.96+0.89-0.82+0.76-0.71+0.66-0.61+0.56-0.52+0.49-0.46+0.43-0.4+0.37-0.34+0.31-0.29+0.28-0.27+0.26-0.25+0.24-0.23+0.22-0.21+0.19-0.17+0.16-0.15+0.14-0.13+0.12-0.11+0.1-0.09+0.09-0.09
I30: =SUM(I32:I127) -> 78450 | J30: 25370.86 | K30: 667.453 | L30: 26038.313 | M30: 104488.313 | N30: 360 | O30: =SUM(O32:O127) -> 5158.51
B31: Fecha Vcto. | C31: Nro. Cuota (De acuerdo a Plazo) | D31: Nro. Cuota | E31: Periodo Base | F31: Tasa | G31: Nro. Dias | H31: Principal | I31: Capital | J31: Interes | K31: Interes de Gracia | L31: Interes Total | M31: Valor Cuota | N31: Comision Envio Informacion | O31: Seguro de Desgravamen | P31: Cuota | Q31: Saldo Principal | R31: Exceso | S31: Importe de Gracia Desgravamen | U31: Dias Transcurridos Acumulados | V31: Factor Simple Actualizacion | W31: Principal | X31: Capital | Y31: Interes | Z31: Cuota Gracia | AA31: Saldo Deuda
B32: =IF(D32<=$F$13,DATE(YEAR(EDATE($O$6,C32)),MONTH(EDATE($O$6,C32)),DAY(EDATE($O$6,C32))),"") -> 2022-02-02 | C32: =IF(D32<=$F$13,IF(OR(MONTH(O7)=F16, MONTH(O7)=F17),IF(ABS(F17-F16)=1,3,2),1),"") -> 1 | D32: =1 -> 1 | E32: =IF(D32<=$F$13,$O$9,"") -> 360 | F32: =IF(D32<=$F$13,$F$8,"") -> 10 | G32: =B32-O6 -> 31 | H32: =F6 -> 78450 | I32: =IF((IF(ISERROR(MATCH(MONTH(B32),$F$18:$F$19,0))=FALSE,$H$24 + $O$28,0) + $H$24+$O$28+$Q$26)-J32<0,0.01,IF(ISERROR(MATCH(MONTH(B32),$F$18:$F$19,0))=FALSE,$H$24 + $O$28,0)+ ($H$24+$O$28+$Q$26)-J32)- S32 -> 720.78 | J32: =IF(D32<=$F$13,IF(FALSE,$H$24+$O$28 + $Q$26-0.01,IF(ROUND(ROUND(H32*(((1+(F32/100))^(G32/E32))-1),4),2)+ $Q$26>$H$24,$H$24+ $Q$26+-0.01,ROUND(ROUND(H32*(((1+(F32/100))^(G32/E32))-1),4),2)+$Q$26)),"") -> 646.51 | K32: =IF(D32<=$F$13,IF(ISERROR(MATCH(MONTH(B32),$F$18:$F$19,0))=FALSE,$H$23,0) + $H$23,"") -> 9.270180556 | L32: =IF(D32<=$F$13,J32+K32,"") -> 655.7801806 | M32: =IF(D32<=$F$13,I32+J32 + K32,"") -> 1376.560181 | N32: =IF(D32<=$F$13,$H$26,"") -> 5 | O32: =IF(D32<=$F$13,$H$25 + S32,"") -> 145.91 | P32: =IF(D32<=$F$13,M32+N32+O32,"") -> 1527.470181 | Q32: =IF(D32<=$F$13,ROUND(H32-I32,2),"") -> 77729.22 | R32: =IF(D32<=$F$13,IF(ROUND(ROUND(H32*(((1+(F32/100))^(G32/E32))-1),4),2)-$H$24<0,0,ROUND(ROUND(H32*(((1+(F32/100))^(G32/E32))-1),4),2)-$H$24),"") -> 0 | S32: =(C32-D32)*ROUNDDOWN($F$5*$F$9/30*30,2) + ROUNDDOWN($F$5*$F$9/30*F14,2) -> 75.31 | U32: =G32 -> 31 | V32: =1/((1+($H$8/100))^(U32/$O$9))*1 -> 1 | W32: =O16 -> 667.453 | X32: =Z32-Y32 -> 11.12421667 | Y32: =(((1+($H$8/100))^((G32)/$O$9))-1)*W32 -> 0 | Z32: =$I$23 -> 11.12421667 | AA32: =W32-X32 -> 656.3287833
B33: =IF(D33<=$F$13,DATE(YEAR(EDATE($O$6,C33)),MONTH(EDATE($O$6,C33)),DAY(EDATE($O$6,C33))),"") -> 2022-03-02 | C33: =IF(D33<=$F$13,IF(OR(MONTH(DATE(YEAR(B32) + 1/12,MONTH(B32)+1,DAY(B32)))=$F$16,MONTH(DATE(YEAR(B32) + 1/12,MONTH(B32)+1,DAY(B32)))=$F$17),IF(ABS($F$17-$F$16)=1,C32+1,C32 + 2),C32 + 1),"") -> 2 | D33: =D32+1 -> 2 | E33: =IF(D33<=$F$13,$O$9,"") -> 360 | F33: =IF(D33<=$F$13,$F$8,"") -> 10 | G33: =IF(D33<=$F$13,B33-B32,"") -> 28 | H33: =IF(D32<=$F$13,+Q32,"") -> 77729.22 | I33: =IF(D33<=$F$13,IF(D33=$F$13,H33,IF((IF(ISERROR(MATCH(MONTH(B33),$F$18:$F$19,0))=FALSE,$H$24 + $O$28,0) + $H$24+$O$28+$Q$26)-J33<0,0.01,IF(ISERROR(MATCH(MONTH(B33),$F$18:$F$19,0))=FALSE,$H$24 + $O$28,0)+ ($H$24+$O$28+$Q$26)-J33)- S33),"") -> 864.25 | J33: =IF(D33<=$F$13,IF(FALSE,$H$24+$O$28 + $Q$26-0.01,IF(ROUND(ROUND(H33*(((1+(F33/100))^(G33/E33))-1),4),2)+ $Q$26>$H$24,$H$24+ $Q$26+-0.01,ROUND(ROUND(H33*(((1+(F33/100))^(G33/E33))-1),4),2)+$Q$26)),"") -> 578.35 | K33: =IF(D33<=$F$13,IF(ISERROR(MATCH(MONTH(B33),$F$18:$F$19,0))=FALSE,$H$23,0) + $H$23,"") -> 9.270180556 | L33: =IF(D33<=$F$13,J33+K33,"") -> 587.6201806 | M33: =IF(D33<=$F$13,I33+J33 + K33,"") -> 1451.870181 | N33: =IF(D33<=$F$13,$H$26,"") -> 5 | O33: =IF(D33<=$F$13,$H$25 + S33,"") -> 70.6 | P33: =IF(D33<=$F$13,M33+N33+O33,"") -> 1527.470181 | Q33: =IF(D33<=$F$13,ROUND(H33-I33,2),"") -> 76864.97 | R33: =IF(D33<=$F$13,IF(ROUND(ROUND(H33*(((1+(F33/100))^(G33/E33))-1),4),2)-$H$24<0,0,ROUND(ROUND(H33*(((1+(F33/100))^(G33/E33))-1),4),2)-$H$24),"") -> 0 | S33: =IF(C33-C32>1,ROUNDDOWN($F$5*$F$9/30*30,2),0) -> 0 | U33: =U32+G33 -> 59 | V33: =1/((1+($H$8/100))^(U33/$O$9))*1 -> 1 | W33: =AA32 -> 656.3287833 | X33: =Z33-Y33 -> 11.12421667 | Y33: =(((1+($H$8/100))^((G33)/$O$9))-1)*W33 -> 0 | Z33: =$I$23 -> 11.12421667 | AA33: =W33-X33 -> 645.2045667
B34: =IF(D34<=$F$13,DATE(YEAR(EDATE($O$6,C34)),MONTH(EDATE($O$6,C34)),DAY(EDATE($O$6,C34))),"") -> 2022-04-02 | C34: =IF(D34<=$F$13,IF(OR(MONTH(DATE(YEAR(B33) + 1/12,MONTH(B33)+1,DAY(B33)))=$F$16,MONTH(DATE(YEAR(B33) + 1/12,MONTH(B33)+1,DAY(B33)))=$F$17),IF(ABS($F$17-$F$16)=1,C33+1,C33 + 2),C33 + 1),"") -> 3 | D34: =D33+1 -> 3 | E34: 360 | F34: 10 | G34: =IF(D34<=$F$13,B34-B33,"") -> 31 | H34: =IF(D33<=$F$13,+Q33,"") -> 76864.97 | I34: 809.15 | J34: 633.45 | K34: 9.270180556 | L34: 642.7201806 | M34: 1451.870181 | N34: 5 | O34: 70.6 | P34: 1527.470181 | Q34: 76055.82 | R34: 0 | S34: =IF(C34-C33>1,ROUNDDOWN($F$5*$F$9/30*30,2),0) -> 0 | U34: =U33+G34 -> 90 | V34: 1 | W34: =AA33 -> 645.2045667 | X34: =Z34-Y34 -> 11.12421667 | Y34: =(((1+($H$8/100))^((G34)/$O$9))-1)*W34 -> 0 | Z34: 11.12421667 | AA34: =W34-X34 -> 634.08035
B35: 2022-05-02 | C35: 4 | D35: 4 | E35: 360 | F35: 10 | G35: 30 | H35: 76055.82 | I35: 836.12 | J35: 606.48 | K35: 9.270180556 | L35: 615.7501806 | M35: 1451.870181 | N35: 5 | O35: 70.6 | P35: 1527.470181 | Q35: 75219.7 | R35: 0 | S35: 0 | U35: 120 | V35: 1 | W35: 634.08035 | X35: 11.12421667 | Y35: 0 | Z35: 11.12421667 | AA35: 622.9561333
B36: 2022-06-02 | C36: 5 | D36: 5 | E36: 360 | F36: 10 | G36: 31 | H36: 75219.7 | I36: 822.71 | J36: 619.89 | K36: 9.270180556 | L36: 629.1601806 | M36: 1451.870181 | N36: 5 | O36: 70.6 | P36: 1527.470181 | Q36: 74396.99 | R36: 0 | S36: 0 | U36: 151 | V36: 1 | W36: 622.9561333 | X36: 11.12421667 | Y36: 0 | Z36: 11.12421667 | AA36: 611.8319167
B37: 2022-07-02 | C37: 6 | D37: 6 | E37: 360 | F37: 10 | G37: 30 | H37: 74396.99 | I37: 849.35 | J37: 593.25 | K37: =IF(D37<=$F$13,IF(ISERROR(MATCH(MONTH(B37),$F$18:$F$19,0))=FALSE,$H$23,0) + $H$23,"") -> 9.270180556 | L37: 602.5201806 | M37: 1451.870181 | N37: 5 | O37: 70.6 | P37: 1527.470181 | Q37: 73547.64 | R37: 0 | S37: 0 | U37: 181 | V37: 1 | W37: 611.8319167 | X37: 11.12421667 | Y37: 0 | Z37: 11.12421667 | AA37: 600.7077
B38: 2022-08-02 | C38: 7 | D38: 7 | E38: 360 | F38: 10 | G38: 31 | H38: 73547.64 | I38: 836.49 | J38: 606.11 | K38: 9.270180556 | L38: 615.3801806 | M38: 1451.870181 | N38: 5 | O38: 70.6 | P38: 1527.470181 | Q38: 72711.15 | R38: 0 | S38: 0 | U38: 212 | V38: 1 | W38: 600.7077 | X38: 11.12421667 | Y38: 0 | Z38: 11.12421667 | AA38: 589.5834833
B39: 2022-09-02 | C39: 8 | D39: 8 | E39: 360 | F39: 10 | G39: 31 | H39: 72711.15 | I39: 843.38 | J39: 599.22 | K39: 9.270180556 | L39: 608.4901806 | M39: 1451.870181 | N39: 5 | O39: 70.6 | P39: 1527.470181 | Q39: 71867.77 | R39: 0 | S39: 0 | U39: 243 | V39: 1 | W39: 589.5834833 | X39: 11.12421667 | Y39: 0 | Z39: 11.12421667 | AA39: 578.4592667
B40: 2022-10-02 | C40: 9 | D40: 9 | E40: 360 | F40: 10 | G40: 30 | H40: 71867.77 | I40: 869.52 | J40: 573.08 | K40: 9.270180556 | L40: 582.3501806 | M40: 1451.870181 | N40: 5 | O40: 70.6 | P40: 1527.470181 | Q40: 70998.25 | R40: 0 | S40: 0 | U40: 273 | V40: 1 | W40: 578.4592667 | X40: 11.12421667 | Y40: 0 | Z40: 11.12421667 | AA40: 567.33505
B41: 2022-11-02 | C41: 10 | D41: 10 | E41: 360 | F41: 10 | G41: 31 | H41: 70998.25 | I41: 857.5 | J41: 585.1 | K41: 9.270180556 | L41: 594.3701806 | M41: 1451.870181 | N41: 5 | O41: 70.6 | P41: 1527.470181 | Q41: 70140.75 | R41: 0 | S41: 0 | U41: 304 | V41: 1 | W41: 567.33505 | X41: 11.12421667 | Y41: 0 | Z41: 11.12421667 | AA41: 556.2108333
B42: 2022-12-02 | C42: 11 | D42: 11 | E42: 360 | F42: 10 | G42: 30 | H42: 70140.75 | I42: 883.29 | J42: 559.31 | K42: 9.270180556 | L42: 568.5801806 | M42: 1451.870181 | N42: 5 | O42: 70.6 | P42: 1527.470181 | Q42: 69257.46 | R42: 0 | S42: 0 | U42: 334 | V42: 1 | W42: 556.2108333 | X42: 11.12421667 | Y42: 0 | Z42: 11.12421667 | AA42: 545.0866167
B43: 2023-01-02 | C43: 12 | D43: 12 | E43: 360 | F43: 10 | G43: 31 | H43: 69257.46 | I43: 871.85 | J43: 570.75 | K43: 9.270180556 | L43: 580.0201806 | M43: 1451.870181 | N43: 5 | O43: 70.6 | P43: 1527.470181 | Q43: 68385.61 | R43: 0 | S43: 0 | U43: 365 | V43: 1 | W43: 545.0866167 | X43: 11.12421667 | Y43: 0 | Z43: 11.12421667 | AA43: 533.9624
B44: 2023-02-02 | C44: 13 | D44: 13 | E44: 360 | F44: 10 | G44: 31 | H44: 68385.61 | I44: 879.03 | J44: 563.57 | K44: 9.270180556 | L44: 572.8401806 | M44: 1451.870181 | N44: 5 | O44: 70.6 | P44: 1527.470181 | Q44: 67506.58 | R44: 0 | S44: 0 | U44: 396 | V44: 1 | W44: 533.9624 | X44: 11.12421667 | Y44: 0 | Z44: 11.12421667 | AA44: 522.8381833
B45: 2023-03-02 | C45: 14 | D45: 14 | E45: 360 | F45: 10 | G45: 28 | H45: 67506.58 | I45: 940.31 | J45: 502.29 | K45: 9.270180556 | L45: 511.5601806 | M45: 1451.870181 | N45: 5 | O45: 70.6 | P45: 1527.470181 | Q45: 66566.27 | R45: 0 | S45: 0 | U45: 424 | V45: 1 | W45: 522.8381833 | X45: 11.12421667 | Y45: 0 | Z45: 11.12421667 | AA45: 511.7139667
B46: 2023-04-02 | C46: 15 | D46: 15 | E46: 360 | F46: 10 | G46: 31 | H46: 66566.27 | I46: 894.02 | J46: 548.58 | K46: 9.270180556 | L46: 557.8501806 | M46: 1451.870181 | N46: 5 | O46: 70.6 | P46: 1527.470181 | Q46: 65672.25 | R46: 0 | S46: 0 | U46: 455 | V46: 1 | W46: 511.7139667 | X46: 11.12421667 | Y46: 0 | Z46: 11.12421667 | AA46: 500.58975
B47: 2023-05-02 | C47: 16 | D47: 16 | E47: 360 | F47: 10 | G47: 30 | H47: 65672.25 | I47: 918.92 | J47: 523.68 | K47: 9.270180556 | L47: 532.9501806 | M47: 1451.870181 | N47: 5 | O47: 70.6 | P47: 1527.470181 | Q47: 64753.33 | R47: 0 | S47: 0 | U47: 485 | V47: 1 | W47: 500.58975 | X47: 11.12421667 | Y47: 0 | Z47: 11.12421667 | AA47: 489.4655333
B48: 2023-06-02 | C48: 17 | D48: 17 | E48: 360 | F48: 10 | G48: 31 | H48: 64753.33 | I48: 908.97 | J48: 533.63 | K48: 9.270180556 | L48: 542.9001806 | M48: 1451.870181 | N48: 5 | O48: 70.6 | P48: 1527.470181 | Q48: 63844.36 | R48: 0 | S48: 0 | U48: 516 | V48: 1 | W48: 489.4655333 | X48: 11.12421667 | Y48: 0 | Z48: 11.12421667 | AA48: 478.3413167
B49: 2023-07-02 | C49: 18 | D49: 18 | E49: 360 | F49: 10 | G49: 30 | H49: 63844.36 | I49: 933.5 | J49: 509.1 | K49: 9.270180556 | L49: 518.3701806 | M49: 1451.870181 | N49: 5 | O49: 70.6 | P49: 1527.470181 | Q49: 62910.86 | R49: 0 | S49: 0 | U49: 546 | V49: 1 | W49: 478.3413167 | X49: 11.12421667 | Y49: 0 | Z49: 11.12421667 | AA49: 467.2171
B50: 2023-08-02 | C50: 19 | D50: 19 | E50: 360 | F50: 10 | G50: 31 | H50: 62910.86 | I50: 924.15 | J50: 518.45 | K50: 9.270180556 | L50: 527.7201806 | M50: 1451.870181 | N50: 5 | O50: 70.6 | P50: 1527.470181 | Q50: 61986.71 | R50: 0 | S50: 0 | U50: 577 | V50: 1 | W50: 467.2171 | X50: 11.12421667 | Y50: 0 | Z50: 11.12421667 | AA50: 456.0928833
B51: 2023-09-02 | C51: 20 | D51: 20 | E51: 360 | F51: 10 | G51: 31 | H51: 61986.71 | I51: 931.77 | J51: 510.83 | K51: 9.270180556 | L51: 520.1001806 | M51: 1451.870181 | N51: 5 | O51: 70.6 | P51: 1527.470181 | Q51: 61054.94 | R51: 0 | S51: 0 | U51: 608 | V51: 1 | W51: 456.0928833 | X51: 11.12421667 | Y51: 0 | Z51: 11.12421667 | AA51: 444.9686667
B52: 2023-10-02 | C52: 21 | D52: 21 | E52: 360 | F52: 10 | G52: 30 | H52: 61054.94 | I52: 955.74 | J52: 486.86 | K52: 9.270180556 | L52: 496.1301806 | M52: 1451.870181 | N52: 5 | O52: 70.6 | P52: 1527.470181 | Q52: 60099.2 | R52: 0 | S52: 0 | U52: 638 | V52: 1 | W52: 444.9686667 | X52: 11.12421667 | Y52: 0 | Z52: 11.12421667 | AA52: 433.84445
B53: 2023-11-02 | C53: 22 | D53: 22 | E53: 360 | F53: 10 | G53: 31 | H53: 60099.2 | I53: 947.32 | J53: 495.28 | K53: 9.270180556 | L53: 504.5501806 | M53: 1451.870181 | N53: 5 | O53: 70.6 | P53: 1527.470181 | Q53: 59151.88 | R53: 0 | S53: 0 | U53: 669 | V53: 1 | W53: 433.84445 | X53: 11.12421667 | Y53: 0 | Z53: 11.12421667 | AA53: 422.7202333
B54: 2023-12-02 | C54: 23 | D54: 23 | E54: 360 | F54: 10 | G54: 30 | H54: 59151.88 | I54: 970.91 | J54: 471.69 | K54: 9.270180556 | L54: 480.9601806 | M54: 1451.870181 | N54: 5 | O54: 70.6 | P54: 1527.470181 | Q54: 58180.97 | R54: 0 | S54: 0 | U54: 699 | V54: 1 | W54: 422.7202333 | X54: 11.12421667 | Y54: 0 | Z54: 11.12421667 | AA54: 411.5960167
B55: 2024-01-02 | C55: 24 | D55: 24 | E55: 360 | F55: 10 | G55: 31 | H55: 58180.97 | I55: 963.13 | J55: 479.47 | K55: 9.270180556 | L55: 488.7401806 | M55: 1451.870181 | N55: 5 | O55: 70.6 | P55: 1527.470181 | Q55: 57217.84 | R55: 0 | S55: 0 | U55: 730 | V55: 1 | W55: 411.5960167 | X55: 11.12421667 | Y55: 0 | Z55: 11.12421667 | AA55: 400.4718
B56: 2024-02-02 | C56: 25 | D56: 25 | E56: 360 | F56: 10 | G56: 31 | H56: 57217.84 | I56: 971.07 | J56: 471.53 | K56: 9.270180556 | L56: 480.8001806 | M56: 1451.870181 | N56: 5 | O56: 70.6 | P56: 1527.470181 | Q56: 56246.77 | R56: 0 | S56: 0 | U56: 761 | V56: 1 | W56: 400.4718 | X56: 11.12421667 | Y56: 0 | Z56: 11.12421667 | AA56: 389.3475833
B57: 2024-03-02 | C57: 26 | D57: 26 | E57: 360 | F57: 10 | G57: 29 | H57: 56246.77 | I57: 1009.09 | J57: 433.51 | K57: 9.270180556 | L57: 442.7801806 | M57: 1451.870181 | N57: 5 | O57: 70.6 | P57: 1527.470181 | Q57: 55237.68 | R57: 0 | S57: 0 | U57: 790 | V57: 1 | W57: 389.3475833 | X57: 11.12421667 | Y57: 0 | Z57: 11.12421667 | AA57: 378.2233667
B58: 2024-04-02 | C58: 27 | D58: 27 | E58: 360 | F58: 10 | G58: 31 | H58: 55237.68 | I58: 987.38 | J58: 455.22 | K58: 9.270180556 | L58: 464.4901806 | M58: 1451.870181 | N58: 5 | O58: 70.6 | P58: 1527.470181 | Q58: 54250.3 | R58: 0 | S58: 0 | U58: 821 | V58: 1 | W58: 378.2233667 | X58: 11.12421667 | Y58: 0 | Z58: 11.12421667 | AA58: 367.09915
B59: 2024-05-02 | C59: 28 | D59: 28 | E59: 360 | F59: 10 | G59: 30 | H59: 54250.3 | I59: 1010 | J59: 432.6 | K59: 9.270180556 | L59: 441.8701806 | M59: 1451.870181 | N59: 5 | O59: 70.6 | P59: 1527.470181 | Q59: 53240.3 | R59: 0 | S59: 0 | U59: 851 | V59: 1 | W59: 367.09915 | X59: 11.12421667 | Y59: 0 | Z59: 11.12421667 | AA59: 355.9749333
B60: 2024-06-02 | C60: 29 | D60: 29 | E60: 360 | F60: 10 | G60: 31 | H60: 53240.3 | I60: 1003.84 | J60: 438.76 | K60: 9.270180556 | L60: 448.0301806 | M60: 1451.870181 | N60: 5 | O60: 70.6 | P60: 1527.470181 | Q60: 52236.46 | R60: 0 | S60: 0 | U60: 882 | V60: 1 | W60: 355.9749333 | X60: 11.12421667 | Y60: 0 | Z60: 11.12421667 | AA60: 344.8507167
B61: 2024-07-02 | C61: 30 | D61: 30 | E61: 360 | F61: 10 | G61: 30 | H61: 52236.46 | I61: 1026.06 | J61: 416.54 | K61: 9.270180556 | L61: 425.8101806 | M61: 1451.870181 | N61: 5 | O61: 70.6 | P61: 1527.470181 | Q61: 51210.4 | R61: 0 | S61: 0 | U61: 912 | V61: 1 | W61: 344.8507167 | X61: 11.12421667 | Y61: 0 | Z61: 11.12421667 | AA61: 333.7265
B62: 2024-08-02 | C62: 31 | D62: 31 | E62: 360 | F62: 10 | G62: 31 | H62: 51210.4 | I62: 1020.57 | J62: 422.03 | K62: 9.270180556 | L62: 431.3001806 | M62: 1451.870181 | N62: 5 | O62: 70.6 | P62: 1527.470181 | Q62: 50189.83 | R62: 0 | S62: 0 | U62: 943 | V62: 1 | W62: 333.7265 | X62: 11.12421667 | Y62: 0 | Z62: 11.12421667 | AA62: 322.6022833
B63: 2024-09-02 | C63: 32 | D63: 32 | E63: 360 | F63: 10 | G63: 31 | H63: 50189.83 | I63: 1028.98 | J63: 413.62 | K63: 9.270180556 | L63: 422.8901806 | M63: 1451.870181 | N63: 5 | O63: 70.6 | P63: 1527.470181 | Q63: 49160.85 | R63: 0 | S63: 0 | U63: 974 | V63: 1 | W63: 322.6022833 | X63: 11.12421667 | Y63: 0 | Z63: 11.12421667 | AA63: 311.4780667
B64: 2024-10-02 | C64: 33 | D64: 33 | E64: 360 | F64: 10 | G64: 30 | H64: 49160.85 | I64: 1050.58 | J64: 392.02 | K64: 9.270180556 | L64: 401.2901806 | M64: 1451.870181 | N64: 5 | O64: 70.6 | P64: 1527.470181 | Q64: 48110.27 | R64: 0 | S64: 0 | U64: 1004 | V64: 1 | W64: 311.4780667 | X64: 11.12421667 | Y64: 0 | Z64: 11.12421667 | AA64: 300.35385
B65: 2024-11-02 | C65: 34 | D65: 34 | E65: 360 | F65: 10 | G65: 31 | H65: 48110.27 | I65: 1046.12 | J65: 396.48 | K65: 9.270180556 | L65: 405.7501806 | M65: 1451.870181 | N65: 5 | O65: 70.6 | P65: 1527.470181 | Q65: 47064.15 | R65: 0 | S65: 0 | U65: 1035 | V65: 1 | W65: 300.35385 | X65: 11.12421667 | Y65: 0 | Z65: 11.12421667 | AA65: 289.2296333
B66: 2024-12-02 | C66: 35 | D66: 35 | E66: 360 | F66: 10 | G66: 30 | H66: 47064.15 | I66: 1067.3 | J66: 375.3 | K66: 9.270180556 | L66: 384.5701806 | M66: 1451.870181 | N66: 5 | O66: 70.6 | P66: 1527.470181 | Q66: 45996.85 | R66: 0 | S66: 0 | U66: 1065 | V66: 1 | W66: 289.2296333 | X66: 11.12421667 | Y66: 0 | Z66: 11.12421667 | AA66: 278.1054167
B67: 2025-01-02 | C67: 36 | D67: 36 | E67: 360 | F67: 10 | G67: 31 | H67: 45996.85 | I67: 1063.54 | J67: 379.06 | K67: 9.270180556 | L67: 388.3301806 | M67: 1451.870181 | N67: 5 | O67: 70.6 | P67: 1527.470181 | Q67: 44933.31 | R67: 0 | S67: 0 | U67: 1096 | V67: 1 | W67: 278.1054167 | X67: 11.12421667 | Y67: 0 | Z67: 11.12421667 | AA67: 266.9812
B68: 2025-02-02 | C68: 37 | D68: 37 | E68: 360 | F68: 10 | G68: 31 | H68: 44933.31 | I68: 1072.3 | J68: 370.3 | K68: 9.270180556 | L68: 379.5701806 | M68: 1451.870181 | N68: 5 | O68: 70.6 | P68: 1527.470181 | Q68: 43861.01 | R68: 0 | S68: 0 | U68: 1127 | V68: 1 | W68: 266.9812 | X68: 11.12421667 | Y68: 0 | Z68: 11.12421667 | AA68: 255.8569833
B69: 2025-03-02 | C69: 38 | D69: 38 | E69: 360 | F69: 10 | G69: 28 | H69: 43861.01 | I69: 1116.25 | J69: 326.35 | K69: 9.270180556 | L69: 335.6201806 | M69: 1451.870181 | N69: 5 | O69: 70.6 | P69: 1527.470181 | Q69: 42744.76 | R69: 0 | S69: 0 | U69: 1155 | V69: 1 | W69: 255.8569833 | X69: 11.12421667 | Y69: 0 | Z69: 11.12421667 | AA69: 244.7327667
B70: 2025-04-02 | C70: 39 | D70: 39 | E70: 360 | F70: 10 | G70: 31 | H70: 42744.76 | I70: 1090.34 | J70: 352.26 | K70: 9.270180556 | L70: 361.5301806 | M70: 1451.870181 | N70: 5 | O70: 70.6 | P70: 1527.470181 | Q70: 41654.42 | R70: 0 | S70: 0 | U70: 1186 | V70: 1 | W70: 244.7327667 | X70: 11.12421667 | Y70: 0 | Z70: 11.12421667 | AA70: 233.60855
B71: 2025-05-02 | C71: 40 | D71: 40 | E71: 360 | F71: 10 | G71: 30 | H71: 41654.42 | I71: 1110.44 | J71: 332.16 | K71: 9.270180556 | L71: 341.4301806 | M71: 1451.870181 | N71: 5 | O71: 70.6 | P71: 1527.470181 | Q71: 40543.98 | R71: 0 | S71: 0 | U71: 1216 | V71: 1 | W71: 233.60855 | X71: 11.12421667 | Y71: 0 | Z71: 11.12421667 | AA71: 222.4843333
B72: 2025-06-02 | C72: 41 | D72: =D71+1 -> 41 | E72: 360 | F72: 10 | G72: 31 | H72: 40543.98 | I72: 1108.48 | J72: 334.12 | K72: 9.270180556 | L72: 343.3901806 | M72: 1451.870181 | N72: 5 | O72: 70.6 | P72: 1527.470181 | Q72: 39435.5 | R72: 0 | S72: 0 | U72: 1247 | V72: 1 | W72: 222.4843333 | X72: 11.12421667 | Y72: 0 | Z72: 11.12421667 | AA72: 211.3601167
B73: 2025-07-02 | C73: 42 | D73: 42 | E73: 360 | F73: 10 | G73: 30 | H73: 39435.5 | I73: 1128.14 | J73: 314.46 | K73: 9.270180556 | L73: 323.7301806 | M73: 1451.870181 | N73: 5 | O73: 70.6 | P73: 1527.470181 | Q73: 38307.36 | R73: 0 | S73: 0 | U73: 1277 | V73: 1 | W73: 211.3601167 | X73: 11.12421667 | Y73: 0 | Z73: 11.12421667 | AA73: 200.2359
B74: 2025-08-02 | C74: 43 | D74: 43 | E74: 360 | F74: 10 | G74: 31 | H74: 38307.36 | I74: 1126.91 | J74: 315.69 | K74: 9.270180556 | L74: 324.9601806 | M74: 1451.870181 | N74: 5 | O74: 70.6 | P74: 1527.470181 | Q74: 37180.45 | R74: 0 | S74: 0 | U74: 1308 | V74: 1 | W74: 200.2359 | X74: 11.12421667 | Y74: 0 | Z74: 11.12421667 | AA74: 189.1116833
B75: 2025-09-02 | C75: 44 | D75: 44 | E75: 360 | F75: 10 | G75: 31 | H75: 37180.45 | I75: 1136.19 | J75: 306.41 | K75: 9.270180556 | L75: 315.6801806 | M75: 1451.870181 | N75: 5 | O75: 70.6 | P75: 1527.470181 | Q75: 36044.26 | R75: 0 | S75: 0 | U75: 1339 | V75: 1 | W75: 189.1116833 | X75: 11.12421667 | Y75: 0 | Z75: 11.12421667 | AA75: 177.9874667
B76: 2025-10-02 | C76: 45 | D76: 45 | E76: 360 | F76: 10 | G76: 30 | H76: 36044.26 | I76: 1155.18 | J76: 287.42 | K76: 9.270180556 | L76: 296.6901806 | M76: 1451.870181 | N76: 5 | O76: 70.6 | P76: 1527.470181 | Q76: 34889.08 | R76: 0 | S76: 0 | U76: 1369 | V76: 1 | W76: 177.9874667 | X76: 11.12421667 | Y76: 0 | Z76: 11.12421667 | AA76: 166.86325
B77: 2025-11-02 | C77: 46 | D77: 46 | E77: 360 | F77: 10 | G77: 31 | H77: 34889.08 | I77: 1155.08 | J77: 287.52 | K77: 9.270180556 | L77: 296.7901806 | M77: 1451.870181 | N77: 5 | O77: 70.6 | P77: 1527.470181 | Q77: 33734 | R77: 0 | S77: 0 | U77: 1400 | V77: 1 | W77: 166.86325 | X77: 11.12421667 | Y77: 0 | Z77: 11.12421667 | AA77: 155.7390333
B78: 2025-12-02 | C78: 47 | D78: 47 | E78: 360 | F78: 10 | G78: 30 | H78: 33734 | I78: 1173.6 | J78: 269 | K78: 9.270180556 | L78: 278.2701806 | M78: 1451.870181 | N78: 5 | O78: 70.6 | P78: 1527.470181 | Q78: 32560.4 | R78: 0 | S78: 0 | U78: 1430 | V78: 1 | W78: 155.7390333 | X78: 11.12421667 | Y78: 0 | Z78: 11.12421667 | AA78: 144.6148167
B79: 2026-01-02 | C79: 48 | D79: 48 | E79: 360 | F79: 10 | G79: 31 | H79: 32560.4 | I79: 1174.27 | J79: 268.33 | K79: 9.270180556 | L79: 277.6001806 | M79: 1451.870181 | N79: 5 | O79: 70.6 | P79: 1527.470181 | Q79: 31386.13 | R79: 0 | S79: 0 | U79: 1461 | V79: 1 | W79: 144.6148167 | X79: 11.12421667 | Y79: 0 | Z79: 11.12421667 | AA79: 133.4906
B80: 2026-02-02 | C80: 49 | D80: 49 | E80: 360 | F80: 10 | G80: 31 | H80: 31386.13 | I80: 1183.95 | J80: 258.65 | K80: 9.270180556 | L80: 267.9201806 | M80: 1451.870181 | N80: 5 | O80: 70.6 | P80: 1527.470181 | Q80: 30202.18 | R80: 0 | S80: 0 | U80: 1492 | V80: 1 | W80: 133.4906 | X80: 11.12421667 | Y80: 0 | Z80: 11.12421667 | AA80: 122.3663833
B81: 2026-03-02 | C81: 50 | D81: 50 | E81: 360 | F81: 10 | G81: 28 | H81: 30202.18 | I81: 1217.88 | J81: 224.72 | K81: 9.270180556 | L81: 233.9901806 | M81: 1451.870181 | N81: 5 | O81: 70.6 | P81: 1527.470181 | Q81: 28984.3 | R81: 0 | S81: 0 | U81: 1520 | V81: 1 | W81: 122.3663833 | X81: 11.12421667 | Y81: 0 | Z81: 11.12421667 | AA81: 111.2421667
B82: 2026-04-02 | C82: 51 | D82: 51 | E82: 360 | F82: 10 | G82: 31 | H82: 28984.3 | I82: 1203.74 | J82: 238.86 | K82: 9.270180556 | L82: 248.1301806 | M82: 1451.870181 | N82: 5 | O82: 70.6 | P82: 1527.470181 | Q82: 27780.56 | R82: 0 | S82: 0 | U82: 1551 | V82: 1 | W82: 111.2421667 | X82: 11.12421667 | Y82: 0 | Z82: 11.12421667 | AA82: 100.11795
B83: 2026-05-02 | C83: 52 | D83: 52 | E83: 360 | F83: 10 | G83: 30 | H83: 27780.56 | I83: 1221.07 | J83: 221.53 | K83: 9.270180556 | L83: 230.8001806 | M83: 1451.870181 | N83: 5 | O83: 70.6 | P83: 1527.470181 | Q83: 26559.49 | R83: 0 | S83: 0 | U83: 1581 | V83: 1 | W83: 100.11795 | X83: 11.12421667 | Y83: 0 | Z83: 11.12421667 | AA83: 88.99373333
B84: 2026-06-02 | C84: 53 | D84: 53 | E84: 360 | F84: 10 | G84: 31 | H84: 26559.49 | I84: 1223.72 | J84: 218.88 | K84: 9.270180556 | L84: 228.1501806 | M84: 1451.870181 | N84: 5 | O84: 70.6 | P84: 1527.470181 | Q84: 25335.77 | R84: 0 | S84: 0 | U84: 1612 | V84: 1 | W84: 88.99373333 | X84: 11.12421667 | Y84: 0 | Z84: 11.12421667 | AA84: 77.86951667
B85: 2026-07-02 | C85: 54 | D85: 54 | E85: 360 | F85: 10 | G85: 30 | H85: 25335.77 | I85: 1240.57 | J85: 202.03 | K85: 9.270180556 | L85: 211.3001806 | M85: 1451.870181 | N85: 5 | O85: 70.6 | P85: 1527.470181 | Q85: 24095.2 | R85: 0 | S85: 0 | U85: 1642 | V85: 1 | W85: 77.86951667 | X85: 11.12421667 | Y85: 0 | Z85: 11.12421667 | AA85: 66.7453
B86: 2026-08-02 | C86: 55 | D86: 55 | E86: 360 | F86: 10 | G86: 31 | H86: 24095.2 | I86: 1244.03 | J86: 198.57 | K86: 9.270180556 | L86: 207.8401806 | M86: 1451.870181 | N86: 5 | O86: 70.6 | P86: 1527.470181 | Q86: 22851.17 | R86: 0 | S86: 0 | U86: 1673 | V86: 1 | W86: 66.7453 | X86: 11.12421667 | Y86: 0 | Z86: 11.12421667 | AA86: 55.62108333
B87: 2026-09-02 | C87: 56 | D87: 56 | E87: 360 | F87: 10 | G87: 31 | H87: 22851.17 | I87: 1254.28 | J87: 188.32 | K87: 9.270180556 | L87: 197.5901806 | M87: 1451.870181 | N87: 5 | O87: 70.6 | P87: 1527.470181 | Q87: 21596.89 | R87: 0 | S87: 0 | U87: 1704 | V87: 1 | W87: 55.62108333 | X87: 11.12421667 | Y87: 0 | Z87: 11.12421667 | AA87: 44.49686667
B88: 2026-10-02 | C88: 57 | D88: 57 | E88: 360 | F88: 10 | G88: 30 | H88: 21596.89 | I88: 1270.38 | J88: 172.22 | K88: 9.270180556 | L88: 181.4901806 | M88: 1451.870181 | N88: 5 | O88: 70.6 | P88: 1527.470181 | Q88: 20326.51 | R88: 0 | S88: 0 | U88: 1734 | V88: 1 | W88: 44.49686667 | X88: 11.12421667 | Y88: 0 | Z88: 11.12421667 | AA88: 33.37265
B89: 2026-11-02 | C89: 58 | D89: 58 | E89: 360 | F89: 10 | G89: 31 | H89: 20326.51 | I89: 1275.09 | J89: 167.51 | K89: 9.270180556 | L89: 176.7801806 | M89: 1451.870181 | N89: 5 | O89: 70.6 | P89: 1527.470181 | Q89: 19051.42 | R89: 0 | S89: 0 | U89: 1765 | V89: 1 | W89: 33.37265 | X89: 11.12421667 | Y89: 0 | Z89: 11.12421667 | AA89: 22.24843333
B90: 2026-12-02 | C90: 59 | D90: 59 | E90: 360 | F90: 10 | G90: 30 | H90: 19051.42 | I90: 1290.68 | J90: 151.92 | K90: 9.270180556 | L90: 161.1901806 | M90: 1451.870181 | N90: 5 | O90: 70.6 | P90: 1527.470181 | Q90: 17760.74 | R90: 0 | S90: 0 | U90: 1795 | V90: 1 | W90: 22.24843333 | X90: 11.12421667 | Y90: 0 | Z90: 11.12421667 | AA90: 11.12421667
B91: 2027-01-02 | C91: 60 | D91: 60 | E91: 360 | F91: 10 | G91: 31 | H91: 17760.74 | I91: 1296.23 | J91: 146.37 | K91: 9.270180556 | L91: 155.6401806 | M91: 1451.870181 | N91: 5 | O91: 70.6 | P91: 1527.470181 | Q91: 16464.51 | R91: 0 | S91: 0 | U91: 1826 | V91: 1 | W91: 11.12421667 | X91: 11.12421667 | Y91: 0 | Z91: 11.12421667 | AA91: -2.167155344e-13
B92: 2027-02-02 | C92: 61 | D92: 61 | E92: 360 | F92: 10 | G92: 31 | H92: 16464.51 | I92: 1306.92 | J92: 135.68 | K92: 9.270180556 | L92: 144.9501806 | M92: 1451.870181 | N92: 5 | O92: 70.6 | P92: 1527.470181 | Q92: 15157.59 | R92: 0
B93: 2027-03-02 | C93: 62 | D93: 62 | E93: 360 | F93: 10 | G93: 28 | H93: 15157.59 | I93: 1329.82 | J93: 112.78 | K93: 9.270180556 | L93: 122.0501806 | M93: 1451.870181 | N93: 5 | O93: 70.6 | P93: 1527.470181 | Q93: 13827.77 | R93: 0
B94: 2027-04-02 | C94: 63 | D94: 63 | E94: 360 | F94: 10 | G94: 31 | H94: 13827.77 | I94: 1328.64 | J94: 113.96 | K94: 9.270180556 | L94: 123.2301806 | M94: 1451.870181 | N94: 5 | O94: 70.6 | P94: 1527.470181 | Q94: 12499.13 | R94: 0
B95: 2027-05-02 | C95: 64 | D95: 64 | E95: 360 | F95: 10 | G95: 30 | H95: 12499.13 | I95: 1342.93 | J95: 99.67 | K95: 9.270180556 | L95: 108.9401806 | M95: 1451.870181 | N95: 5 | O95: 70.6 | P95: 1527.470181 | Q95: 11156.2 | R95: 0
B96: 2027-06-02 | C96: 65 | D96: 65 | E96: 360 | F96: 10 | G96: 31 | H96: 11156.2 | I96: 1350.66 | J96: 91.94 | K96: 9.270180556 | L96: 101.2101806 | M96: 1451.870181 | N96: 5 | O96: 70.6 | P96: 1527.470181 | Q96: 9805.54 | R96: 0
B97: 2027-07-02 | C97: 66 | D97: 66 | E97: =IF(D97<=$F$13,$O$9,"") -> 360 | F97: =IF(D97<=$F$13,$F$8,"") -> 10 | G97: 30 | H97: 9805.54 | I97: =IF(D97<=$F$13,IF(D97=$F$13,H97,IF((IF(ISERROR(MATCH(MONTH(B97),$F$18:$F$19,0))=FALSE,$H$24 + $O$28,0) + $H$24+$O$28+$Q$26)-J97<0,0.01,IF(ISERROR(MATCH(MONTH(B97),$F$18:$F$19,0))=FALSE,$H$24 + $O$28,0)+ ($H$24+$O$28+$Q$26)-J97)- S97),"") -> 1364.41 | J97: =IF(D97<=$F$13,IF(FALSE,$H$24+$O$28 + $Q$26-0.01,IF(ROUND(ROUND(H97*(((1+(F97/100))^(G97/E97))-1),4),2)+ $Q$26>$H$24,$H$24+ $Q$26+-0.01,ROUND(ROUND(H97*(((1+(F97/100))^(G97/E97))-1),4),2)+$Q$26)),"") -> 78.19 | K97: =IF(D97<=$F$13,IF(ISERROR(MATCH(MONTH(B97),$F$18:$F$19,0))=FALSE,$H$23,0) + $H$23,"") -> 9.270180556 | L97: =IF(D97<=$F$13,J97+K97,"") -> 87.46018056 | M97: =IF(D97<=$F$13,I97+J97 + K97,"") -> 1451.870181 | N97: =IF(D97<=$F$13,$H$26,"") -> 5 | O97: =IF(D97<=$F$13,$H$25 + S97,"") -> 70.6 | P97: =IF(D97<=$F$13,M97+N97+O97,"") -> 1527.470181 | Q97: =IF(D97<=$F$13,ROUND(H97-I97,2),"") -> 8441.13 | R97: =IF(D97<=$F$13,IF(ROUND(ROUND(H97*(((1+(F97/100))^(G97/E97))-1),4),2)-$H$24<0,0,ROUND(ROUND(H97*(((1+(F97/100))^(G97/E97))-1),4),2)-$H$24),"") -> 0
B98: =IF(D98<=$F$13,DATE(YEAR(EDATE($O$6,C98)),MONTH(EDATE($O$6,C98)),DAY(EDATE($O$6,C98))),"") -> 2027-08-02 | C98: =IF(D98<=$F$13,IF(OR(MONTH(DATE(YEAR(B97) + 1/12,MONTH(B97)+1,DAY(B97)))=$F$16,MONTH(DATE(YEAR(B97) + 1/12,MONTH(B97)+1,DAY(B97)))=$F$17),IF(ABS($F$17-$F$16)=1,C97+1,C97 + 2),C97 + 1),"") -> 67 | D98: =D97+1 -> 67 | E98: 360 | F98: 10 | G98: =IF(D98<=$F$13,B98-B97,"") -> 31 | H98: =IF(D97<=$F$13,+Q97,"") -> 8441.13 | I98: 1373.04 | J98: 69.56 | K98: 9.270180556 | L98: 78.83018056 | M98: 1451.870181 | N98: 5 | O98: 70.6 | P98: 1527.470181 | Q98: 7068.09 | R98: 0
B99: 2027-09-02 | C99: 68 | D99: 68 | E99: 360 | F99: 10 | G99: 31 | H99: 7068.09 | I99: 1384.35 | J99: 58.25 | K99: 9.270180556 | L99: 67.52018056 | M99: 1451.870181 | N99: 5 | O99: 70.6 | P99: 1527.470181 | Q99: 5683.74 | R99: 0
B100: 2027-10-02 | C100: 69 | D100: 69 | E100: 360 | F100: 10 | G100: 30 | H100: 5683.74 | I100: 1397.28 | J100: 45.32 | K100: 9.270180556 | L100: 54.59018056 | M100: 1451.870181 | N100: 5 | O100: 70.6 | P100: 1527.470181 | Q100: 4286.46 | R100: 0
B101: 2027-11-02 | C101: 70 | D101: 70 | E101: 360 | F101: 10 | G101: 31 | H101: 4286.46 | I101: 1407.28 | J101: 35.32 | K101: 9.270180556 | L101: 44.59018056 | M101: 1451.870181 | N101: 5 | O101: 70.6 | P101: 1527.470181 | Q101: 2879.18 | R101: 0
B102: 2027-12-02 | C102: 71 | D102: 71 | E102: 360 | F102: 10 | G102: 30 | H102: 2879.18 | I102: 1419.64 | J102: 22.96 | K102: 9.270180556 | L102: 32.23018056 | M102: 1451.870181 | N102: 5 | O102: 70.6 | P102: 1527.470181 | Q102: 1459.54 | R102: 0
B103: 2028-01-02 | C103: 72 | D103: 72 | E103: 360 | F103: 10 | G103: 31 | H103: =IF(D102<=$F$13,+Q102,"") -> 1459.54 | I103: 1459.54 | J103: 12.03 | K103: 9.270180556 | L103: 21.30018056 | M103: 1480.840181 | N103: 5 | O103: 70.6 | P103: 1556.440181 | Q103: 0 | R103: 0
D104: 73 | H104: =IF(D103<=$F$13,+Q103,"") -> 0
D105: 74
D106: 75
D107: 76
D108: 77
D109: 78
D110: 79
D111: 80
D112: 81
D113: 82
D114: 83
D115: 84
D116: 85
D117: 86
D118: 87
D119: 88
D120: 89
D121: 90
D122: 91
D123: 92
D124: 93
D125: 94
D126: 95
D127: 96

Sheet v3-cronograma
D4: CRONOGRAMA DE PAGOS - Credito Por Convenios
D7: Moneda | E7: ='v1-mascara'!G5 -> PEN | H7: Monto prestamo | J7: ='v1-mascara'!G7 -> 78450
D8: Producto | E8: Convenios | H8: TEA | J8: ='v1-mascara'!G13 -> 10
D9: Fecha desembolso | E9: =' v2-calculos'!O5 -> 2021-12-01 | H9: Plazo | J9: ='v1-mascara'!G11 -> 72
D10: Periodo de gracia | E10: =' v2-calculos'!F14 -> 32 | H10: TCEA
H11: Tasa Seguro Desgravamen | J11: ='v1-mascara'!G19 -> 0.0009
D14: Principal | E14: Capital | F14: Interes | G14: Interes de Gracia | H14: Comisiones | I14: Seguro de Desgravamen | J14: Cuota
C15: 1 | D15: =INDEX(' v2-calculos'!$H$31:$H$127,MATCH(C15,' v2-calculos'!$D$31:$D$127,0),1) -> 78450 | E15: =INDEX(' v2-calculos'!$I$31:$I$127,MATCH(C15,' v2-calculos'!$D$31:$D$127,0),1) -> 720.78 | F15: =INDEX(' v2-calculos'!$J$31:$J$127,MATCH(C15,' v2-calculos'!$D$31:$D$127,0),1) -> 646.51 | G15: =INDEX(' v2-calculos'!$K$31:$K$127,MATCH(C15,' v2-calculos'!$D$31:$D$127,0),1) -> 9.270180556 | H15: =INDEX(' v2-calculos'!$N$31:$N$127,MATCH(C15,' v2-calculos'!$D$31:$D$127,0),1) -> 5 | I15: =INDEX(' v2-calculos'!$O$31:$O$127,MATCH(C15,' v2-calculos'!$D$31:$D$127,0),1) -> 145.91 | J15: =INDEX(' v2-calculos'!$P$31:$P$127,MATCH(C15,' v2-calculos'!$D$31:$D$127,0),1) -> 1527.470181
C16: =C15+1 -> 2 | D16: =INDEX(' v2-calculos'!$H$31:$H$127,MATCH(C16,' v2-calculos'!$D$31:$D$127,0),1) -> 77729.22 | E16: =INDEX(' v2-calculos'!$I$31:$I$127,MATCH(C16,' v2-calculos'!$D$31:$D$127,0),1) -> 864.25 | F16: =INDEX(' v2-calculos'!$J$31:$J$127,MATCH(C16,' v2-calculos'!$D$31:$D$127,0),1) -> 578.35 | G16: =INDEX(' v2-calculos'!$K$31:$K$127,MATCH(C16,' v2-calculos'!$D$31:$D$127,0),1) -> 9.270180556 | H16: =INDEX(' v2-calculos'!$N$31:$N$127,MATCH(C16,' v2-calculos'!$D$31:$D$127,0),1) -> 5 | I16: =INDEX(' v2-calculos'!$O$31:$O$127,MATCH(C16,' v2-calculos'!$D$31:$D$127,0),1) -> 70.6 | J16: =INDEX(' v2-calculos'!$P$31:$P$127,MATCH(C16,' v2-calculos'!$D$31:$D$127,0),1) -> 1527.470181
C17: =C16+1 -> 3 | D17: =INDEX(' v2-calculos'!$H$31:$H$127,MATCH(C17,' v2-calculos'!$D$31:$D$127,0),1) -> 76864.97 | E17: =INDEX(' v2-calculos'!$I$31:$I$127,MATCH(C17,' v2-calculos'!$D$31:$D$127,0),1) -> 809.15 | F17: =INDEX(' v2-calculos'!$J$31:$J$127,MATCH(C17,' v2-calculos'!$D$31:$D$127,0),1) -> 633.45 | G17: =INDEX(' v2-calculos'!$K$31:$K$127,MATCH(C17,' v2-calculos'!$D$31:$D$127,0),1) -> 9.270180556 | H17: =INDEX(' v2-calculos'!$N$31:$N$127,MATCH(C17,' v2-calculos'!$D$31:$D$127,0),1) -> 5 | I17: =INDEX(' v2-calculos'!$O$31:$O$127,MATCH(C17,' v2-calculos'!$D$31:$D$127,0),1) -> 70.6 | J17: =INDEX(' v2-calculos'!$P$31:$P$127,MATCH(C17,' v2-calculos'!$D$31:$D$127,0),1) -> 1527.470181
C18: 4 | D18: =INDEX(' v2-calculos'!$H$31:$H$127,MATCH(C18,' v2-calculos'!$D$31:$D$127,0),1) -> 76055.82 | E18: =INDEX(' v2-calculos'!$I$31:$I$127,MATCH(C18,' v2-calculos'!$D$31:$D$127,0),1) -> 836.12 | F18: =INDEX(' v2-calculos'!$J$31:$J$127,MATCH(C18,' v2-calculos'!$D$31:$D$127,0),1) -> 606.48 | G18: =INDEX(' v2-calculos'!$K$31:$K$127,MATCH(C18,' v2-calculos'!$D$31:$D$127,0),1) -> 9.270180556 | H18: =INDEX(' v2-calculos'!$N$31:$N$127,MATCH(C18,' v2-calculos'!$D$31:$D$127,0),1) -> 5 | I18: =INDEX(' v2-calculos'!$O$31:$O$127,MATCH(C18,' v2-calculos'!$D$31:$D$127,0),1) -> 70.6 | J18: =INDEX(' v2-calculos'!$P$31:$P$127,MATCH(C18,' v2-calculos'!$D$31:$D$127,0),1) -> 1527.470181
C19: 5 | D19: =INDEX(' v2-calculos'!$H$31:$H$127,MATCH(C19,' v2-calculos'!$D$31:$D$127,0),1) -> 75219.7 | E19: =INDEX(' v2-calculos'!$I$31:$I$127,MATCH(C19,' v2-calculos'!$D$31:$D$127,0),1) -> 822.71 | F19: =INDEX(' v2-calculos'!$J$31:$J$127,MATCH(C19,' v2-calculos'!$D$31:$D$127,0),1) -> 619.89 | G19: =INDEX(' v2-calculos'!$K$31:$K$127,MATCH(C19,' v2-calculos'!$D$31:$D$127,0),1) -> 9.270180556 | H19: =INDEX(' v2-calculos'!$N$31:$N$127,MATCH(C19,' v2-calculos'!$D$31:$D$127,0),1) -> 5 | I19: =INDEX(' v2-calculos'!$O$31:$O$127,MATCH(C19,' v2-calculos'!$D$31:$D$127,0),1) -> 70.6 | J19: =INDEX(' v2-calculos'!$P$31:$P$127,MATCH(C19,' v2-calculos'!$D$31:$D$127,0),1) -> 1527.470181
C20: 6 | D20: =INDEX(' v2-calculos'!$H$31:$H$127,MATCH(C20,' v2-calculos'!$D$31:$D$127,0),1) -> 74396.99 | E20: =INDEX(' v2-calculos'!$I$31:$I$127,MATCH(C20,' v2-calculos'!$D$31:$D$127,0),1) -> 849.35 | F20: =INDEX(' v2-calculos'!$J$31:$J$127,MATCH(C20,' v2-calculos'!$D$31:$D$127,0),1) -> 593.25 | G20: =INDEX(' v2-calculos'!$K$31:$K$127,MATCH(C20,' v2-calculos'!$D$31:$D$127,0),1) -> 9.270180556 | H20: =INDEX(' v2-calculos'!$N$31:$N$127,MATCH(C20,' v2-calculos'!$D$31:$D$127,0),1) -> 5 | I20: =INDEX(' v2-calculos'!$O$31:$O$127,MATCH(C20,' v2-calculos'!$D$31:$D$127,0),1) -> 70.6 | J20: =INDEX(' v2-calculos'!$P$31:$P$127,MATCH(C20,' v2-calculos'!$D$31:$D$127,0),1) -> 1527.470181
C21: 7 | D21: =INDEX(' v2-calculos'!$H$31:$H$127,MATCH(C21,' v2-calculos'!$D$31:$D$127,0),1) -> 73547.64 | E21: =INDEX(' v2-calculos'!$I$31:$I$127,MATCH(C21,' v2-calculos'!$D$31:$D$127,0),1) -> 836.49 | F21: =INDEX(' v2-calculos'!$J$31:$J$127,MATCH(C21,' v2-calculos'!$D$31:$D$127,0),1) -> 606.11 | G21: =INDEX(' v2-calculos'!$K$31:$K$127,MATCH(C21,' v2-calculos'!$D$31:$D$127,0),1) -> 9.270180556 | H21: =INDEX(' v2-calculos'!$N$31:$N$127,MATCH(C21,' v2-calculos'!$D$31:$D$127,0),1) -> 5 | I21: =INDEX(' v2-calculos'!$O$31:$O$127,MATCH(C21,' v2-calculos'!$D$31:$D$127,0),1) -> 70.6 | J21: =INDEX(' v2-calculos'!$P$31:$P$127,MATCH(C21,' v2-calculos'!$D$31:$D$127,0),1) -> 1527.470181
C22: 8 | D22: =INDEX(' v2-calculos'!$H$31:$H$127,MATCH(C22,' v2-calculos'!$D$31:$D$127,0),1) -> 72711.15 | E22: =INDEX(' v2-calculos'!$I$31:$I$127,MATCH(C22,' v2-calculos'!$D$31:$D$127,0),1) -> 843.38 | F22: =INDEX(' v2-calculos'!$J$31:$J$127,MATCH(C22,' v2-calculos'!$D$31:$D$127,0),1) -> 599.22 | G22: =INDEX(' v2-calculos'!$K$31:$K$127,MATCH(C22,' v2-calculos'!$D$31:$D$127,0),1) -> 9.270180556 | H22: =INDEX(' v2-calculos'!$N$31:$N$127,MATCH(C22,' v2-calculos'!$D$31:$D$127,0),1) -> 5 | I22: =INDEX(' v2-calculos'!$O$31:$O$127,MATCH(C22,' v2-calculos'!$D$31:$D$127,0),1) -> 70.6 | J22: =INDEX(' v2-calculos'!$P$31:$P$127,MATCH(C22,' v2-calculos'!$D$31:$D$127,0),1) -> 1527.470181
C23: 9 | D23: =INDEX(' v2-calculos'!$H$31:$H$127,MATCH(C23,' v2-calculos'!$D$31:$D$127,0),1) -> 71867.77 | E23: =INDEX(' v2-calculos'!$I$31:$I$127,MATCH(C23,' v2-calculos'!$D$31:$D$127,0),1) -> 869.52 | F23: =INDEX(' v2-calculos'!$J$31:$J$127,MATCH(C23,' v2-calculos'!$D$31:$D$127,0),1) -> 573.08 | G23: =INDEX(' v2-calculos'!$K$31:$K$127,MATCH(C23,' v2-calculos'!$D$31:$D$127,0),1) -> 9.270180556 | H23: =INDEX(' v2-calculos'!$N$31:$N$127,MATCH(C23,' v2-calculos'!$D$31:$D$127,0),1) -> 5 | I23: =INDEX(' v2-calculos'!$O$31:$O$127,MATCH(C23,' v2-calculos'!$D$31:$D$127,0),1) -> 70.6 | J23: =INDEX(' v2-calculos'!$P$31:$P$127,MATCH(C23,' v2-calculos'!$D$31:$D$127,0),1) -> 1527.470181
C24: 10 | D24: =INDEX(' v2-calculos'!$H$31:$H$127,MATCH(C24,' v2-calculos'!$D$31:$D$127,0),1) -> 70998.25 | E24: =INDEX(' v2-calculos'!$I$31:$I$127,MATCH(C24,' v2-calculos'!$D$31:$D$127,0),1) -> 857.5 | F24: =INDEX(' v2-calculos'!$J$31:$J$127,MATCH(C24,' v2-calculos'!$D$31:$D$127,0),1) -> 585.1 | G24: =INDEX(' v2-calculos'!$K$31:$K$127,MATCH(C24,' v2-calculos'!$D$31:$D$127,0),1) -> 9.270180556 | H24: =INDEX(' v2-calculos'!$N$31:$N$127,MATCH(C24,' v2-calculos'!$D$31:$D$127,0),1) -> 5 | I24: =INDEX(' v2-calculos'!$O$31:$O$127,MATCH(C24,' v2-calculos'!$D$31:$D$127,0),1) -> 70.6 | J24: =INDEX(' v2-calculos'!$P$31:$P$127,MATCH(C24,' v2-calculos'!$D$31:$D$127,0),1) -> 1527.470181
C25: 11 | D25: =INDEX(' v2-calculos'!$H$31:$H$127,MATCH(C25,' v2-calculos'!$D$31:$D$127,0),1) -> 70140.75 | E25: =INDEX(' v2-calculos'!$I$31:$I$127,MATCH(C25,' v2-calculos'!$D$31:$D$127,0),1) -> 883.29 | F25: =INDEX(' v2-calculos'!$J$31:$J$127,MATCH(C25,' v2-calculos'!$D$31:$D$127,0),1) -> 559.31 | G25: =INDEX(' v2-calculos'!$K$31:$K$127,MATCH(C25,' v2-calculos'!$D$31:$D$127,0),1) -> 9.270180556 | H25: =INDEX(' v2-calculos'!$N$31:$N$127,MATCH(C25,' v2-calculos'!$D$31:$D$127,0),1) -> 5 | I25: =INDEX(' v2-calculos'!$O$31:$O$127,MATCH(C25,' v2-calculos'!$D$31:$D$127,0),1) -> 70.6 | J25: =INDEX(' v2-calculos'!$P$31:$P$127,MATCH(C25,' v2-calculos'!$D$31:$D$127,0),1) -> 1527.470181
C26: 12 | D26: =INDEX(' v2-calculos'!$H$31:$H$127,MATCH(C26,' v2-calculos'!$D$31:$D$127,0),1) -> 69257.46 | E26: =INDEX(' v2-calculos'!$I$31:$I$127,MATCH(C26,' v2-calculos'!$D$31:$D$127,0),1) -> 871.85 | F26: =INDEX(' v2-calculos'!$J$31:$J$127,MATCH(C26,' v2-calculos'!$D$31:$D$127,0),1) -> 570.75 | G26: =INDEX(' v2-calculos'!$K$31:$K$127,MATCH(C26,' v2-calculos'!$D$31:$D$127,0),1) -> 9.270180556 | H26: =INDEX(' v2-calculos'!$N$31:$N$127,MATCH(C26,' v2-calculos'!$D$31:$D$127,0),1) -> 5 | I26: =INDEX(' v2-calculos'!$O$31:$O$127,MATCH(C26,' v2-calculos'!$D$31:$D$127,0),1) -> 70.6 | J26: =INDEX(' v2-calculos'!$P$31:$P$127,MATCH(C26,' v2-calculos'!$D$31:$D$127,0),1) -> 1527.470181
C27: 13 | D27: =INDEX(' v2-calculos'!$H$31:$H$127,MATCH(C27,' v2-calculos'!$D$31:$D$127,0),1) -> 68385.61 | E27: =INDEX(' v2-calculos'!$I$31:$I$127,MATCH(C27,' v2-calculos'!$D$31:$D$127,0),1) -> 879.03 | F27: =INDEX(' v2-calculos'!$J$31:$J$127,MATCH(C27,' v2-calculos'!$D$31:$D$127,0),1) -> 563.57 | G27: =INDEX(' v2-calculos'!$K$31:$K$127,MATCH(C27,' v2-calculos'!$D$31:$D$127,0),1) -> 9.270180556 | H27: =INDEX(' v2-calculos'!$N$31:$N$127,MATCH(C27,' v2-calculos'!$D$31:$D$127,0),1) -> 5 | I27: =INDEX(' v2-calculos'!$O$31:$O$127,MATCH(C27,' v2-calculos'!$D$31:$D$127,0),1) -> 70.6 | J27: =INDEX(' v2-calculos'!$P$31:$P$127,MATCH(C27,' v2-calculos'!$D$31:$D$127,0),1) -> 1527.470181
C28: 14 | D28: =INDEX(' v2-calculos'!$H$31:$H$127,MATCH(C28,' v2-calculos'!$D$31:$D$127,0),1) -> 67506.58 | E28: =INDEX(' v2-calculos'!$I$31:$I$127,MATCH(C28,' v2-calculos'!$D$31:$D$127,0),1) -> 940.31 | F28: =INDEX(' v2-calculos'!$J$31:$J$127,MATCH(C28,' v2-calculos'!$D$31:$D$127,0),1) -> 502.29 | G28: =INDEX(' v2-calculos'!$K$31:$K$127,MATCH(C28,' v2-calculos'!$D$31:$D$127,0),1) -> 9.270180556 | H28: =INDEX(' v2-calculos'!$N$31:$N$127,MATCH(C28,' v2-calculos'!$D$31:$D$127,0),1) -> 5 | I28: =INDEX(' v2-calculos'!$O$31:$O$127,MATCH(C28,' v2-calculos'!$D$31:$D$127,0),1) -> 70.6 | J28: =INDEX(' v2-calculos'!$P$31:$P$127,MATCH(C28,' v2-calculos'!$D$31:$D$127,0),1) -> 1527.470181
C29: 15 | D29: =INDEX(' v2-calculos'!$H$31:$H$127,MATCH(C29,' v2-calculos'!$D$31:$D$127,0),1) -> 66566.27 | E29: =INDEX(' v2-calculos'!$I$31:$I$127,MATCH(C29,' v2-calculos'!$D$31:$D$127,0),1) -> 894.02 | F29: =INDEX(' v2-calculos'!$J$31:$J$127,MATCH(C29,' v2-calculos'!$D$31:$D$127,0),1) -> 548.58 | G29: =INDEX(' v2-calculos'!$K$31:$K$127,MATCH(C29,' v2-calculos'!$D$31:$D$127,0),1) -> 9.270180556 | H29: =INDEX(' v2-calculos'!$N$31:$N$127,MATCH(C29,' v2-calculos'!$D$31:$D$127,0),1) -> 5 | I29: =INDEX(' v2-calculos'!$O$31:$O$127,MATCH(C29,' v2-calculos'!$D$31:$D$127,0),1) -> 70.6 | J29: =INDEX(' v2-calculos'!$P$31:$P$127,MATCH(C29,' v2-calculos'!$D$31:$D$127,0),1) -> 1527.470181
C30: 16 | D30: =INDEX(' v2-calculos'!$H$31:$H$127,MATCH(C30,' v2-calculos'!$D$31:$D$127,0),1) -> 65672.25 | E30: =INDEX(' v2-calculos'!$I$31:$I$127,MATCH(C30,' v2-calculos'!$D$31:$D$127,0),1) -> 918.92 | F30: =INDEX(' v2-calculos'!$J$31:$J$127,MATCH(C30,' v2-calculos'!$D$31:$D$127,0),1) -> 523.68 | G30: =INDEX(' v2-calculos'!$K$31:$K$127,MATCH(C30,' v2-calculos'!$D$31:$D$127,0),1) -> 9.270180556 | H30: =INDEX(' v2-calculos'!$N$31:$N$127,MATCH(C30,' v2-calculos'!$D$31:$D$127,0),1) -> 5 | I30: =INDEX(' v2-calculos'!$O$31:$O$127,MATCH(C30,' v2-calculos'!$D$31:$D$127,0),1) -> 70.6 | J30: =INDEX(' v2-calculos'!$P$31:$P$127,MATCH(C30,' v2-calculos'!$D$31:$D$127,0),1) -> 1527.470181
C31: 17 | D31: =INDEX(' v2-calculos'!$H$31:$H$127,MATCH(C31,' v2-calculos'!$D$31:$D$127,0),1) -> 64753.33 | E31: =INDEX(' v2-calculos'!$I$31:$I$127,MATCH(C31,' v2-calculos'!$D$31:$D$127,0),1) -> 908.97 | F31: =INDEX(' v2-calculos'!$J$31:$J$127,MATCH(C31,' v2-calculos'!$D$31:$D$127,0),1) -> 533.63 | G31: =INDEX(' v2-calculos'!$K$31:$K$127,MATCH(C31,' v2-calculos'!$D$31:$D$127,0),1) -> 9.270180556 | H31: =INDEX(' v2-calculos'!$N$31:$N$127,MATCH(C31,' v2-calculos'!$D$31:$D$127,0),1) -> 5 | I31: =INDEX(' v2-calculos'!$O$31:$O$127,MATCH(C31,' v2-calculos'!$D$31:$D$127,0),1) -> 70.6 | J31: =INDEX(' v2-calculos'!$P$31:$P$127,MATCH(C31,' v2-calculos'!$D$31:$D$127,0),1) -> 1527.470181
C32: 18 | D32: =INDEX(' v2-calculos'!$H$31:$H$127,MATCH(C32,' v2-calculos'!$D$31:$D$127,0),1) -> 63844.36 | E32: =INDEX(' v2-calculos'!$I$31:$I$127,MATCH(C32,' v2-calculos'!$D$31:$D$127,0),1) -> 933.5 | F32: =INDEX(' v2-calculos'!$J$31:$J$127,MATCH(C32,' v2-calculos'!$D$31:$D$127,0),1) -> 509.1 | G32: =INDEX(' v2-calculos'!$K$31:$K$127,MATCH(C32,' v2-calculos'!$D$31:$D$127,0),1) -> 9.270180556 | H32: =INDEX(' v2-calculos'!$N$31:$N$127,MATCH(C32,' v2-calculos'!$D$31:$D$127,0),1) -> 5 | I32: =INDEX(' v2-calculos'!$O$31:$O$127,MATCH(C32,' v2-calculos'!$D$31:$D$127,0),1) -> 70.6 | J32: =INDEX(' v2-calculos'!$P$31:$P$127,MATCH(C32,' v2-calculos'!$D$31:$D$127,0),1) -> 1527.470181
C33: 19 | D33: =INDEX(' v2-calculos'!$H$31:$H$127,MATCH(C33,' v2-calculos'!$D$31:$D$127,0),1) -> 62910.86 | E33: =INDEX(' v2-calculos'!$I$31:$I$127,MATCH(C33,' v2-calculos'!$D$31:$D$127,0),1) -> 924.15 | F33: =INDEX(' v2-calculos'!$J$31:$J$127,MATCH(C33,' v2-calculos'!$D$31:$D$127,0),1) -> 518.45 | G33: =INDEX(' v2-calculos'!$K$31:$K$127,MATCH(C33,' v2-calculos'!$D$31:$D$127,0),1) -> 9.270180556 | H33: =INDEX(' v2-calculos'!$N$31:$N$127,MATCH(C33,' v2-calculos'!$D$31:$D$127,0),1) -> 5 | I33: =INDEX(' v2-calculos'!$O$31:$O$127,MATCH(C33,' v2-calculos'!$D$31:$D$127,0),1) -> 70.6 | J33: =INDEX(' v2-calculos'!$P$31:$P$127,MATCH(C33,' v2-calculos'!$D$31:$D$127,0),1) -> 1527.470181
C34: 20 | D34: =INDEX(' v2-calculos'!$H$31:$H$127,MATCH(C34,' v2-calculos'!$D$31:$D$127,0),1) -> 61986.71 | E34: =INDEX(' v2-calculos'!$I$31:$I$127,MATCH(C34,' v2-calculos'!$D$31:$D$127,0),1) -> 931.77 | F34: =INDEX(' v2-calculos'!$J$31:$J$127,MATCH(C34,' v2-calculos'!$D$31:$D$127,0),1) -> 510.83 | G34: =INDEX(' v2-calculos'!$K$31:$K$127,MATCH(C34,' v2-calculos'!$D$31:$D$127,0),1) -> 9.270180556 | H34: =INDEX(' v2-calculos'!$N$31:$N$127,MATCH(C34,' v2-calculos'!$D$31:$D$127,0),1) -> 5 | I34: =INDEX(' v2-calculos'!$O$31:$O$127,MATCH(C34,' v2-calculos'!$D$31:$D$127,0),1) -> 70.6 | J34: =INDEX(' v2-calculos'!$P$31:$P$127,MATCH(C34,' v2-calculos'!$D$31:$D$127,0),1) -> 1527.470181
C35: 21 | D35: =INDEX(' v2-calculos'!$H$31:$H$127,MATCH(C35,' v2-calculos'!$D$31:$D$127,0),1) -> 61054.94 | E35: =INDEX(' v2-calculos'!$I$31:$I$127,MATCH(C35,' v2-calculos'!$D$31:$D$127,0),1) -> 955.74 | F35: =INDEX(' v2-calculos'!$J$31:$J$127,MATCH(C35,' v2-calculos'!$D$31:$D$127,0),1) -> 486.86 | G35: =INDEX(' v2-calculos'!$K$31:$K$127,MATCH(C35,' v2-calculos'!$D$31:$D$127,0),1) -> 9.270180556 | H35: =INDEX(' v2-calculos'!$N$31:$N$127,MATCH(C35,' v2-calculos'!$D$31:$D$127,0),1) -> 5 | I35: =INDEX(' v2-calculos'!$O$31:$O$127,MATCH(C35,' v2-calculos'!$D$31:$D$127,0),1) -> 70.6 | J35: =INDEX(' v2-calculos'!$P$31:$P$127,MATCH(C35,' v2-calculos'!$D$31:$D$127,0),1) -> 1527.470181
C36: 22 | D36: =INDEX(' v2-calculos'!$H$31:$H$127,MATCH(C36,' v2-calculos'!$D$31:$D$127,0),1) -> 60099.2 | E36: =INDEX(' v2-calculos'!$I$31:$I$127,MATCH(C36,' v2-calculos'!$D$31:$D$127,0),1) -> 947.32 | F36: =INDEX(' v2-calculos'!$J$31:$J$127,MATCH(C36,' v2-calculos'!$D$31:$D$127,0),1) -> 495.28 | G36: =INDEX(' v2-calculos'!$K$31:$K$127,MATCH(C36,' v2-calculos'!$D$31:$D$127,0),1) -> 9.270180556 | H36: =INDEX(' v2-calculos'!$N$31:$N$127,MATCH(C36,' v2-calculos'!$D$31:$D$127,0),1) -> 5 | I36: =INDEX(' v2-calculos'!$O$31:$O$127,MATCH(C36,' v2-calculos'!$D$31:$D$127,0),1) -> 70.6 | J36: =INDEX(' v2-calculos'!$P$31:$P$127,MATCH(C36,' v2-calculos'!$D$31:$D$127,0),1) -> 1527.470181
C37: 23 | D37: =INDEX(' v2-calculos'!$H$31:$H$127,MATCH(C37,' v2-calculos'!$D$31:$D$127,0),1) -> 59151.88 | E37: =INDEX(' v2-calculos'!$I$31:$I$127,MATCH(C37,' v2-calculos'!$D$31:$D$127,0),1) -> 970.91 | F37: =INDEX(' v2-calculos'!$J$31:$J$127,MATCH(C37,' v2-calculos'!$D$31:$D$127,0),1) -> 471.69 | G37: =INDEX(' v2-calculos'!$K$31:$K$127,MATCH(C37,' v2-calculos'!$D$31:$D$127,0),1) -> 9.270180556 | H37: =INDEX(' v2-calculos'!$N$31:$N$127,MATCH(C37,' v2-calculos'!$D$31:$D$127,0),1) -> 5 | I37: =INDEX(' v2-calculos'!$O$31:$O$127,MATCH(C37,' v2-calculos'!$D$31:$D$127,0),1) -> 70.6 | J37: =INDEX(' v2-calculos'!$P$31:$P$127,MATCH(C37,' v2-calculos'!$D$31:$D$127,0),1) -> 1527.470181
C38: 24 | D38: =INDEX(' v2-calculos'!$H$31:$H$127,MATCH(C38,' v2-calculos'!$D$31:$D$127,0),1) -> 58180.97 | E38: =INDEX(' v2-calculos'!$I$31:$I$127,MATCH(C38,' v2-calculos'!$D$31:$D$127,0),1) -> 963.13 | F38: =INDEX(' v2-calculos'!$J$31:$J$127,MATCH(C38,' v2-calculos'!$D$31:$D$127,0),1) -> 479.47 | G38: =INDEX(' v2-calculos'!$K$31:$K$127,MATCH(C38,' v2-calculos'!$D$31:$D$127,0),1) -> 9.270180556 | H38: =INDEX(' v2-calculos'!$N$31:$N$127,MATCH(C38,' v2-calculos'!$D$31:$D$127,0),1) -> 5 | I38: =INDEX(' v2-calculos'!$O$31:$O$127,MATCH(C38,' v2-calculos'!$D$31:$D$127,0),1) -> 70.6 | J38: =INDEX(' v2-calculos'!$P$31:$P$127,MATCH(C38,' v2-calculos'!$D$31:$D$127,0),1) -> 1527.470181
C39: 25 | D39: =INDEX(' v2-calculos'!$H$31:$H$127,MATCH(C39,' v2-calculos'!$D$31:$D$127,0),1) -> 57217.84 | E39: =INDEX(' v2-calculos'!$I$31:$I$127,MATCH(C39,' v2-calculos'!$D$31:$D$127,0),1) -> 971.07 | F39: =INDEX(' v2-calculos'!$J$31:$J$127,MATCH(C39,' v2-calculos'!$D$31:$D$127,0),1) -> 471.53 | G39: =INDEX(' v2-calculos'!$K$31:$K$127,MATCH(C39,' v2-calculos'!$D$31:$D$127,0),1) -> 9.270180556 | H39: =INDEX(' v2-calculos'!$N$31:$N$127,MATCH(C39,' v2-calculos'!$D$31:$D$127,0),1) -> 5 | I39: =INDEX(' v2-calculos'!$O$31:$O$127,MATCH(C39,' v2-calculos'!$D$31:$D$127,0),1) -> 70.6 | J39: =INDEX(' v2-calculos'!$P$31:$P$127,MATCH(C39,' v2-calculos'!$D$31:$D$127,0),1) -> 1527.470181
C40: 26 | D40: =INDEX(' v2-calculos'!$H$31:$H$127,MATCH(C40,' v2-calculos'!$D$31:$D$127,0),1) -> 56246.77 | E40: =INDEX(' v2-calculos'!$I$31:$I$127,MATCH(C40,' v2-calculos'!$D$31:$D$127,0),1) -> 1009.09 | F40: =INDEX(' v2-calculos'!$J$31:$J$127,MATCH(C40,' v2-calculos'!$D$31:$D$127,0),1) -> 433.51 | G40: =INDEX(' v2-calculos'!$K$31:$K$127,MATCH(C40,' v2-calculos'!$D$31:$D$127,0),1) -> 9.270180556 | H40: =INDEX(' v2-calculos'!$N$31:$N$127,MATCH(C40,' v2-calculos'!$D$31:$D$127,0),1) -> 5 | I40: =INDEX(' v2-calculos'!$O$31:$O$127,MATCH(C40,' v2-calculos'!$D$31:$D$127,0),1) -> 70.6 | J40: =INDEX(' v2-calculos'!$P$31:$P$127,MATCH(C40,' v2-calculos'!$D$31:$D$127,0),1) -> 1527.470181
C41: 27 | D41: =INDEX(' v2-calculos'!$H$31:$H$127,MATCH(C41,' v2-calculos'!$D$31:$D$127,0),1) -> 55237.68 | E41: =INDEX(' v2-calculos'!$I$31:$I$127,MATCH(C41,' v2-calculos'!$D$31:$D$127,0),1) -> 987.38 | F41: =INDEX(' v2-calculos'!$J$31:$J$127,MATCH(C41,' v2-calculos'!$D$31:$D$127,0),1) -> 455.22 | G41: =INDEX(' v2-calculos'!$K$31:$K$127,MATCH(C41,' v2-calculos'!$D$31:$D$127,0),1) -> 9.270180556 | H41: =INDEX(' v2-calculos'!$N$31:$N$127,MATCH(C41,' v2-calculos'!$D$31:$D$127,0),1) -> 5 | I41: =INDEX(' v2-calculos'!$O$31:$O$127,MATCH(C41,' v2-calculos'!$D$31:$D$127,0),1) -> 70.6 | J41: =INDEX(' v2-calculos'!$P$31:$P$127,MATCH(C41,' v2-calculos'!$D$31:$D$127,0),1) -> 1527.470181
C42: 28 | D42: =INDEX(' v2-calculos'!$H$31:$H$127,MATCH(C42,' v2-calculos'!$D$31:$D$127,0),1) -> 54250.3 | E42: =INDEX(' v2-calculos'!$I$31:$I$127,MATCH(C42,' v2-calculos'!$D$31:$D$127,0),1) -> 1010 | F42: =INDEX(' v2-calculos'!$J$31:$J$127,MATCH(C42,' v2-calculos'!$D$31:$D$127,0),1) -> 432.6 | G42: =INDEX(' v2-calculos'!$K$31:$K$127,MATCH(C42,' v2-calculos'!$D$31:$D$127,0),1) -> 9.270180556 | H42: =INDEX(' v2-calculos'!$N$31:$N$127,MATCH(C42,' v2-calculos'!$D$31:$D$127,0),1) -> 5 | I42: =INDEX(' v2-calculos'!$O$31:$O$127,MATCH(C42,' v2-calculos'!$D$31:$D$127,0),1) -> 70.6 | J42: =INDEX(' v2-calculos'!$P$31:$P$127,MATCH(C42,' v2-calculos'!$D$31:$D$127,0),1) -> 1527.470181
C43: 29 | D43: =INDEX(' v2-calculos'!$H$31:$H$127,MATCH(C43,' v2-calculos'!$D$31:$D$127,0),1) -> 53240.3 | E43: =INDEX(' v2-calculos'!$I$31:$I$127,MATCH(C43,' v2-calculos'!$D$31:$D$127,0),1) -> 1003.84 | F43: =INDEX(' v2-calculos'!$J$31:$J$127,MATCH(C43,' v2-calculos'!$D$31:$D$127,0),1) -> 438.76 | G43: =INDEX(' v2-calculos'!$K$31:$K$127,MATCH(C43,' v2-calculos'!$D$31:$D$127,0),1) -> 9.270180556 | H43: =INDEX(' v2-calculos'!$N$31:$N$127,MATCH(C43,' v2-calculos'!$D$31:$D$127,0),1) -> 5 | I43: =INDEX(' v2-calculos'!$O$31:$O$127,MATCH(C43,' v2-calculos'!$D$31:$D$127,0),1) -> 70.6 | J43: =INDEX(' v2-calculos'!$P$31:$P$127,MATCH(C43,' v2-calculos'!$D$31:$D$127,0),1) -> 1527.470181
C44: 30 | D44: =INDEX(' v2-calculos'!$H$31:$H$127,MATCH(C44,' v2-calculos'!$D$31:$D$127,0),1) -> 52236.46 | E44: =INDEX(' v2-calculos'!$I$31:$I$127,MATCH(C44,' v2-calculos'!$D$31:$D$127,0),1) -> 1026.06 | F44: =INDEX(' v2-calculos'!$J$31:$J$127,MATCH(C44,' v2-calculos'!$D$31:$D$127,0),1) -> 416.54 | G44: =INDEX(' v2-calculos'!$K$31:$K$127,MATCH(C44,' v2-calculos'!$D$31:$D$127,0),1) -> 9.270180556 | H44: =INDEX(' v2-calculos'!$N$31:$N$127,MATCH(C44,' v2-calculos'!$D$31:$D$127,0),1) -> 5 | I44: =INDEX(' v2-calculos'!$O$31:$O$127,MATCH(C44,' v2-calculos'!$D$31:$D$127,0),1) -> 70.6 | J44: =INDEX(' v2-calculos'!$P$31:$P$127,MATCH(C44,' v2-calculos'!$D$31:$D$127,0),1) -> 1527.470181
C45: 31 | D45: =INDEX(' v2-calculos'!$H$31:$H$127,MATCH(C45,' v2-calculos'!$D$31:$D$127,0),1) -> 51210.4 | E45: =INDEX(' v2-calculos'!$I$31:$I$127,MATCH(C45,' v2-calculos'!$D$31:$D$127,0),1) -> 1020.57 | F45: =INDEX(' v2-calculos'!$J$31:$J$127,MATCH(C45,' v2-calculos'!$D$31:$D$127,0),1) -> 422.03 | G45: =INDEX(' v2-calculos'!$K$31:$K$127,MATCH(C45,' v2-calculos'!$D$31:$D$127,0),1) -> 9.270180556 | H45: =INDEX(' v2-calculos'!$N$31:$N$127,MATCH(C45,' v2-calculos'!$D$31:$D$127,0),1) -> 5 | I45: =INDEX(' v2-calculos'!$O$31:$O$127,MATCH(C45,' v2-calculos'!$D$31:$D$127,0),1) -> 70.6 | J45: =INDEX(' v2-calculos'!$P$31:$P$127,MATCH(C45,' v2-calculos'!$D$31:$D$127,0),1) -> 1527.470181
C46: 32 | D46: =INDEX(' v2-calculos'!$H$31:$H$127,MATCH(C46,' v2-calculos'!$D$31:$D$127,0),1) -> 50189.83 | E46: =INDEX(' v2-calculos'!$I$31:$I$127,MATCH(C46,' v2-calculos'!$D$31:$D$127,0),1) -> 1028.98 | F46: =INDEX(' v2-calculos'!$J$31:$J$127,MATCH(C46,' v2-calculos'!$D$31:$D$127,0),1) -> 413.62 | G46: =INDEX(' v2-calculos'!$K$31:$K$127,MATCH(C46,' v2-calculos'!$D$31:$D$127,0),1) -> 9.270180556 | H46: =INDEX(' v2-calculos'!$N$31:$N$127,MATCH(C46,' v2-calculos'!$D$31:$D$127,0),1) -> 5 | I46: =INDEX(' v2-calculos'!$O$31:$O$127,MATCH(C46,' v2-calculos'!$D$31:$D$127,0),1) -> 70.6 | J46: =INDEX(' v2-calculos'!$P$31:$P$127,MATCH(C46,' v2-calculos'!$D$31:$D$127,0),1) -> 1527.470181
C47: 33 | D47: =INDEX(' v2-calculos'!$H$31:$H$127,MATCH(C47,' v2-calculos'!$D$31:$D$127,0),1) -> 49160.85 | E47: =INDEX(' v2-calculos'!$I$31:$I$127,MATCH(C47,' v2-calculos'!$D$31:$D$127,0),1) -> 1050.58 | F47: =INDEX(' v2-calculos'!$J$31:$J$127,MATCH(C47,' v2-calculos'!$D$31:$D$127,0),1) -> 392.02 | G47: =INDEX(' v2-calculos'!$K$31:$K$127,MATCH(C47,' v2-calculos'!$D$31:$D$127,0),1) -> 9.270180556 | H47: =INDEX(' v2-calculos'!$N$31:$N$127,MATCH(C47,' v2-calculos'!$D$31:$D$127,0),1) -> 5 | I47: =INDEX(' v2-calculos'!$O$31:$O$127,MATCH(C47,' v2-calculos'!$D$31:$D$127,0),1) -> 70.6 | J47: =INDEX(' v2-calculos'!$P$31:$P$127,MATCH(C47,' v2-calculos'!$D$31:$D$127,0),1) -> 1527.470181
C48: 34 | D48: =INDEX(' v2-calculos'!$H$31:$H$127,MATCH(C48,' v2-calculos'!$D$31:$D$127,0),1) -> 48110.27 | E48: =INDEX(' v2-calculos'!$I$31:$I$127,MATCH(C48,' v2-calculos'!$D$31:$D$127,0),1) -> 1046.12 | F48: =INDEX(' v2-calculos'!$J$31:$J$127,MATCH(C48,' v2-calculos'!$D$31:$D$127,0),1) -> 396.48 | G48: =INDEX(' v2-calculos'!$K$31:$K$127,MATCH(C48,' v2-calculos'!$D$31:$D$127,0),1) -> 9.270180556 | H48: =INDEX(' v2-calculos'!$N$31:$N$127,MATCH(C48,' v2-calculos'!$D$31:$D$127,0),1) -> 5 | I48: =INDEX(' v2-calculos'!$O$31:$O$127,MATCH(C48,' v2-calculos'!$D$31:$D$127,0),1) -> 70.6 | J48: =INDEX(' v2-calculos'!$P$31:$P$127,MATCH(C48,' v2-calculos'!$D$31:$D$127,0),1) -> 1527.470181
C49: 35 | D49: =INDEX(' v2-calculos'!$H$31:$H$127,MATCH(C49,' v2-calculos'!$D$31:$D$127,0),1) -> 47064.15 | E49: =INDEX(' v2-calculos'!$I$31:$I$127,MATCH(C49,' v2-calculos'!$D$31:$D$127,0),1) -> 1067.3 | F49: =INDEX(' v2-calculos'!$J$31:$J$127,MATCH(C49,' v2-calculos'!$D$31:$D$127,0),1) -> 375.3 | G49: =INDEX(' v2-calculos'!$K$31:$K$127,MATCH(C49,' v2-calculos'!$D$31:$D$127,0),1) -> 9.270180556 | H49: =INDEX(' v2-calculos'!$N$31:$N$127,MATCH(C49,' v2-calculos'!$D$31:$D$127,0),1) -> 5 | I49: =INDEX(' v2-calculos'!$O$31:$O$127,MATCH(C49,' v2-calculos'!$D$31:$D$127,0),1) -> 70.6 | J49: =INDEX(' v2-calculos'!$P$31:$P$127,MATCH(C49,' v2-calculos'!$D$31:$D$127,0),1) -> 1527.470181
C50: 36 | D50: =INDEX(' v2-calculos'!$H$31:$H$127,MATCH(C50,' v2-calculos'!$D$31:$D$127,0),1) -> 45996.85 | E50: =INDEX(' v2-calculos'!$I$31:$I$127,MATCH(C50,' v2-calculos'!$D$31:$D$127,0),1) -> 1063.54 | F50: =INDEX(' v2-calculos'!$J$31:$J$127,MATCH(C50,' v2-calculos'!$D$31:$D$127,0),1) -> 379.06 | G50: =INDEX(' v2-calculos'!$K$31:$K$127,MATCH(C50,' v2-calculos'!$D$31:$D$127,0),1) -> 9.270180556 | H50: =INDEX(' v2-calculos'!$N$31:$N$127,MATCH(C50,' v2-calculos'!$D$31:$D$127,0),1) -> 5 | I50: =INDEX(' v2-calculos'!$O$31:$O$127,MATCH(C50,' v2-calculos'!$D$31:$D$127,0),1) -> 70.6 | J50: =INDEX(' v2-calculos'!$P$31:$P$127,MATCH(C50,' v2-calculos'!$D$31:$D$127,0),1) -> 1527.470181
C51: 37 | D51: =INDEX(' v2-calculos'!$H$31:$H$127,MATCH(C51,' v2-calculos'!$D$31:$D$127,0),1) -> 44933.31 | E51: =INDEX(' v2-calculos'!$I$31:$I$127,MATCH(C51,' v2-calculos'!$D$31:$D$127,0),1) -> 1072.3 | F51: =INDEX(' v2-calculos'!$J$31:$J$127,MATCH(C51,' v2-calculos'!$D$31:$D$127,0),1) -> 370.3 | G51: =INDEX(' v2-calculos'!$K$31:$K$127,MATCH(C51,' v2-calculos'!$D$31:$D$127,0),1) -> 9.270180556 | H51: =INDEX(' v2-calculos'!$N$31:$N$127,MATCH(C51,' v2-calculos'!$D$31:$D$127,0),1) -> 5 | I51: =INDEX(' v2-calculos'!$O$31:$O$127,MATCH(C51,' v2-calculos'!$D$31:$D$127,0),1) -> 70.6 | J51: =INDEX(' v2-calculos'!$P$31:$P$127,MATCH(C51,' v2-calculos'!$D$31:$D$127,0),1) -> 1527.470181
C52: 38 | D52: =INDEX(' v2-calculos'!$H$31:$H$127,MATCH(C52,' v2-calculos'!$D$31:$D$127,0),1) -> 43861.01 | E52: =INDEX(' v2-calculos'!$I$31:$I$127,MATCH(C52,' v2-calculos'!$D$31:$D$127,0),1) -> 1116.25 | F52: =INDEX(' v2-calculos'!$J$31:$J$127,MATCH(C52,' v2-calculos'!$D$31:$D$127,0),1) -> 326.35 | G52: =INDEX(' v2-calculos'!$K$31:$K$127,MATCH(C52,' v2-calculos'!$D$31:$D$127,0),1) -> 9.270180556 | H52: =INDEX(' v2-calculos'!$N$31:$N$127,MATCH(C52,' v2-calculos'!$D$31:$D$127,0),1) -> 5 | I52: =INDEX(' v2-calculos'!$O$31:$O$127,MATCH(C52,' v2-calculos'!$D$31:$D$127,0),1) -> 70.6 | J52: =INDEX(' v2-calculos'!$P$31:$P$127,MATCH(C52,' v2-calculos'!$D$31:$D$127,0),1) -> 1527.470181
C53: 39 | D53: =INDEX(' v2-calculos'!$H$31:$H$127,MATCH(C53,' v2-calculos'!$D$31:$D$127,0),1) -> 42744.76 | E53: =INDEX(' v2-calculos'!$I$31:$I$127,MATCH(C53,' v2-calculos'!$D$31:$D$127,0),1) -> 1090.34 | F53: =INDEX(' v2-calculos'!$J$31:$J$127,MATCH(C53,' v2-calculos'!$D$31:$D$127,0),1) -> 352.26 | G53: =INDEX(' v2-calculos'!$K$31:$K$127,MATCH(C53,' v2-calculos'!$D$31:$D$127,0),1) -> 9.270180556 | H53: =INDEX(' v2-calculos'!$N$31:$N$127,MATCH(C53,' v2-calculos'!$D$31:$D$127,0),1) -> 5 | I53: =INDEX(' v2-calculos'!$O$31:$O$127,MATCH(C53,' v2-calculos'!$D$31:$D$127,0),1) -> 70.6 | J53: =INDEX(' v2-calculos'!$P$31:$P$127,MATCH(C53,' v2-calculos'!$D$31:$D$127,0),1) -> 1527.470181
C54: 40 | D54: =INDEX(' v2-calculos'!$H$31:$H$127,MATCH(C54,' v2-calculos'!$D$31:$D$127,0),1) -> 41654.42 | E54: =INDEX(' v2-calculos'!$I$31:$I$127,MATCH(C54,' v2-calculos'!$D$31:$D$127,0),1) -> 1110.44 | F54: =INDEX(' v2-calculos'!$J$31:$J$127,MATCH(C54,' v2-calculos'!$D$31:$D$127,0),1) -> 332.16 | G54: =INDEX(' v2-calculos'!$K$31:$K$127,MATCH(C54,' v2-calculos'!$D$31:$D$127,0),1) -> 9.270180556 | H54: =INDEX(' v2-calculos'!$N$31:$N$127,MATCH(C54,' v2-calculos'!$D$31:$D$127,0),1) -> 5 | I54: =INDEX(' v2-calculos'!$O$31:$O$127,MATCH(C54,' v2-calculos'!$D$31:$D$127,0),1) -> 70.6 | J54: =INDEX(' v2-calculos'!$P$31:$P$127,MATCH(C54,' v2-calculos'!$D$31:$D$127,0),1) -> 1527.470181
C55: 41 | D55: =INDEX(' v2-calculos'!$H$31:$H$127,MATCH(C55,' v2-calculos'!$D$31:$D$127,0),1) -> 40543.98 | E55: =INDEX(' v2-calculos'!$I$31:$I$127,MATCH(C55,' v2-calculos'!$D$31:$D$127,0),1) -> 1108.48 | F55: =INDEX(' v2-calculos'!$J$31:$J$127,MATCH(C55,' v2-calculos'!$D$31:$D$127,0),1) -> 334.12 | G55: =INDEX(' v2-calculos'!$K$31:$K$127,MATCH(C55,' v2-calculos'!$D$31:$D$127,0),1) -> 9.270180556 | H55: =INDEX(' v2-calculos'!$N$31:$N$127,MATCH(C55,' v2-calculos'!$D$31:$D$127,0),1) -> 5 | I55: =INDEX(' v2-calculos'!$O$31:$O$127,MATCH(C55,' v2-calculos'!$D$31:$D$127,0),1) -> 70.6 | J55: =INDEX(' v2-calculos'!$P$31:$P$127,MATCH(C55,' v2-calculos'!$D$31:$D$127,0),1) -> 1527.470181
C56: 42 | D56: =INDEX(' v2-calculos'!$H$31:$H$127,MATCH(C56,' v2-calculos'!$D$31:$D$127,0),1) -> 39435.5 | E56: =INDEX(' v2-calculos'!$I$31:$I$127,MATCH(C56,' v2-calculos'!$D$31:$D$127,0),1) -> 1128.14 | F56: =INDEX(' v2-calculos'!$J$31:$J$127,MATCH(C56,' v2-calculos'!$D$31:$D$127,0),1) -> 314.46 | G56: =INDEX(' v2-calculos'!$K$31:$K$127,MATCH(C56,' v2-calculos'!$D$31:$D$127,0),1) -> 9.270180556 | H56: =INDEX(' v2-calculos'!$N$31:$N$127,MATCH(C56,' v2-calculos'!$D$31:$D$127,0),1) -> 5 | I56: =INDEX(' v2-calculos'!$O$31:$O$127,MATCH(C56,' v2-calculos'!$D$31:$D$127,0),1) -> 70.6 | J56: =INDEX(' v2-calculos'!$P$31:$P$127,MATCH(C56,' v2-calculos'!$D$31:$D$127,0),1) -> 1527.470181
C57: 43 | D57: =INDEX(' v2-calculos'!$H$31:$H$127,MATCH(C57,' v2-calculos'!$D$31:$D$127,0),1) -> 38307.36 | E57: =INDEX(' v2-calculos'!$I$31:$I$127,MATCH(C57,' v2-calculos'!$D$31:$D$127,0),1) -> 1126.91 | F57: =INDEX(' v2-calculos'!$J$31:$J$127,MATCH(C57,' v2-calculos'!$D$31:$D$127,0),1) -> 315.69 | G57: =INDEX(' v2-calculos'!$K$31:$K$127,MATCH(C57,' v2-calculos'!$D$31:$D$127,0),1) -> 9.270180556 | H57: =INDEX(' v2-calculos'!$N$31:$N$127,MATCH(C57,' v2-calculos'!$D$31:$D$127,0),1) -> 5 | I57: =INDEX(' v2-calculos'!$O$31:$O$127,MATCH(C57,' v2-calculos'!$D$31:$D$127,0),1) -> 70.6 | J57: =INDEX(' v2-calculos'!$P$31:$P$127,MATCH(C57,' v2-calculos'!$D$31:$D$127,0),1) -> 1527.470181
C58: 44 | D58: =INDEX(' v2-calculos'!$H$31:$H$127,MATCH(C58,' v2-calculos'!$D$31:$D$127,0),1) -> 37180.45 | E58: =INDEX(' v2-calculos'!$I$31:$I$127,MATCH(C58,' v2-calculos'!$D$31:$D$127,0),1) -> 1136.19 | F58: =INDEX(' v2-calculos'!$J$31:$J$127,MATCH(C58,' v2-calculos'!$D$31:$D$127,0),1) -> 306.41 | G58: =INDEX(' v2-calculos'!$K$31:$K$127,MATCH(C58,' v2-calculos'!$D$31:$D$127,0),1) -> 9.270180556 | H58: =INDEX(' v2-calculos'!$N$31:$N$127,MATCH(C58,' v2-calculos'!$D$31:$D$127,0),1) -> 5 | I58: =INDEX(' v2-calculos'!$O$31:$O$127,MATCH(C58,' v2-calculos'!$D$31:$D$127,0),1) -> 70.6 | J58: =INDEX(' v2-calculos'!$P$31:$P$127,MATCH(C58,' v2-calculos'!$D$31:$D$127,0),1) -> 1527.470181
C59: 45 | D59: =INDEX(' v2-calculos'!$H$31:$H$127,MATCH(C59,' v2-calculos'!$D$31:$D$127,0),1) -> 36044.26 | E59: =INDEX(' v2-calculos'!$I$31:$I$127,MATCH(C59,' v2-calculos'!$D$31:$D$127,0),1) -> 1155.18 | F59: =INDEX(' v2-calculos'!$J$31:$J$127,MATCH(C59,' v2-calculos'!$D$31:$D$127,0),1) -> 287.42 | G59: =INDEX(' v2-calculos'!$K$31:$K$127,MATCH(C59,' v2-calculos'!$D$31:$D$127,0),1) -> 9.270180556 | H59: =INDEX(' v2-calculos'!$N$31:$N$127,MATCH(C59,' v2-calculos'!$D$31:$D$127,0),1) -> 5 | I59: =INDEX(' v2-calculos'!$O$31:$O$127,MATCH(C59,' v2-calculos'!$D$31:$D$127,0),1) -> 70.6 | J59: =INDEX(' v2-calculos'!$P$31:$P$127,MATCH(C59,' v2-calculos'!$D$31:$D$127,0),1) -> 1527.470181
C60: 46 | D60: =INDEX(' v2-calculos'!$H$31:$H$127,MATCH(C60,' v2-calculos'!$D$31:$D$127,0),1) -> 34889.08 | E60: =INDEX(' v2-calculos'!$I$31:$I$127,MATCH(C60,' v2-calculos'!$D$31:$D$127,0),1) -> 1155.08 | F60: =INDEX(' v2-calculos'!$J$31:$J$127,MATCH(C60,' v2-calculos'!$D$31:$D$127,0),1) -> 287.52 | G60: =INDEX(' v2-calculos'!$K$31:$K$127,MATCH(C60,' v2-calculos'!$D$31:$D$127,0),1) -> 9.270180556 | H60: =INDEX(' v2-calculos'!$N$31:$N$127,MATCH(C60,' v2-calculos'!$D$31:$D$127,0),1) -> 5 | I60: =INDEX(' v2-calculos'!$O$31:$O$127,MATCH(C60,' v2-calculos'!$D$31:$D$127,0),1) -> 70.6 | J60: =INDEX(' v2-calculos'!$P$31:$P$127,MATCH(C60,' v2-calculos'!$D$31:$D$127,0),1) -> 1527.470181
C61: 47 | D61: =INDEX(' v2-calculos'!$H$31:$H$127,MATCH(C61,' v2-calculos'!$D$31:$D$127,0),1) -> 33734 | E61: =INDEX(' v2-calculos'!$I$31:$I$127,MATCH(C61,' v2-calculos'!$D$31:$D$127,0),1) -> 1173.6 | F61: =INDEX(' v2-calculos'!$J$31:$J$127,MATCH(C61,' v2-calculos'!$D$31:$D$127,0),1) -> 269 | G61: =INDEX(' v2-calculos'!$K$31:$K$127,MATCH(C61,' v2-calculos'!$D$31:$D$127,0),1) -> 9.270180556 | H61: =INDEX(' v2-calculos'!$N$31:$N$127,MATCH(C61,' v2-calculos'!$D$31:$D$127,0),1) -> 5 | I61: =INDEX(' v2-calculos'!$O$31:$O$127,MATCH(C61,' v2-calculos'!$D$31:$D$127,0),1) -> 70.6 | J61: =INDEX(' v2-calculos'!$P$31:$P$127,MATCH(C61,' v2-calculos'!$D$31:$D$127,0),1) -> 1527.470181
C62: 48 | D62: =INDEX(' v2-calculos'!$H$31:$H$127,MATCH(C62,' v2-calculos'!$D$31:$D$127,0),1) -> 32560.4 | E62: =INDEX(' v2-calculos'!$I$31:$I$127,MATCH(C62,' v2-calculos'!$D$31:$D$127,0),1) -> 1174.27 | F62: =INDEX(' v2-calculos'!$J$31:$J$127,MATCH(C62,' v2-calculos'!$D$31:$D$127,0),1) -> 268.33 | G62: =INDEX(' v2-calculos'!$K$31:$K$127,MATCH(C62,' v2-calculos'!$D$31:$D$127,0),1) -> 9.270180556 | H62: =INDEX(' v2-calculos'!$N$31:$N$127,MATCH(C62,' v2-calculos'!$D$31:$D$127,0),1) -> 5 | I62: =INDEX(' v2-calculos'!$O$31:$O$127,MATCH(C62,' v2-calculos'!$D$31:$D$127,0),1) -> 70.6 | J62: =INDEX(' v2-calculos'!$P$31:$P$127,MATCH(C62,' v2-calculos'!$D$31:$D$127,0),1) -> 1527.470181
C63: 49 | D63: =INDEX(' v2-calculos'!$H$31:$H$127,MATCH(C63,' v2-calculos'!$D$31:$D$127,0),1) -> 31386.13 | E63: =INDEX(' v2-calculos'!$I$31:$I$127,MATCH(C63,' v2-calculos'!$D$31:$D$127,0),1) -> 1183.95 | F63: =INDEX(' v2-calculos'!$J$31:$J$127,MATCH(C63,' v2-calculos'!$D$31:$D$127,0),1) -> 258.65 | G63: =INDEX(' v2-calculos'!$K$31:$K$127,MATCH(C63,' v2-calculos'!$D$31:$D$127,0),1) -> 9.270180556 | H63: =INDEX(' v2-calculos'!$N$31:$N$127,MATCH(C63,' v2-calculos'!$D$31:$D$127,0),1) -> 5 | I63: =INDEX(' v2-calculos'!$O$31:$O$127,MATCH(C63,' v2-calculos'!$D$31:$D$127,0),1) -> 70.6 | J63: =INDEX(' v2-calculos'!$P$31:$P$127,MATCH(C63,' v2-calculos'!$D$31:$D$127,0),1) -> 1527.470181
C64: 50 | D64: =INDEX(' v2-calculos'!$H$31:$H$127,MATCH(C64,' v2-calculos'!$D$31:$D$127,0),1) -> 30202.18 | E64: =INDEX(' v2-calculos'!$I$31:$I$127,MATCH(C64,' v2-calculos'!$D$31:$D$127,0),1) -> 1217.88 | F64: =INDEX(' v2-calculos'!$J$31:$J$127,MATCH(C64,' v2-calculos'!$D$31:$D$127,0),1) -> 224.72 | G64: =INDEX(' v2-calculos'!$K$31:$K$127,MATCH(C64,' v2-calculos'!$D$31:$D$127,0),1) -> 9.270180556 | H64: =INDEX(' v2-calculos'!$N$31:$N$127,MATCH(C64,' v2-calculos'!$D$31:$D$127,0),1) -> 5 | I64: =INDEX(' v2-calculos'!$O$31:$O$127,MATCH(C64,' v2-calculos'!$D$31:$D$127,0),1) -> 70.6 | J64: =INDEX(' v2-calculos'!$P$31:$P$127,MATCH(C64,' v2-calculos'!$D$31:$D$127,0),1) -> 1527.470181
C65: 51 | D65: =INDEX(' v2-calculos'!$H$31:$H$127,MATCH(C65,' v2-calculos'!$D$31:$D$127,0),1) -> 28984.3 | E65: =INDEX(' v2-calculos'!$I$31:$I$127,MATCH(C65,' v2-calculos'!$D$31:$D$127,0),1) -> 1203.74 | F65: =INDEX(' v2-calculos'!$J$31:$J$127,MATCH(C65,' v2-calculos'!$D$31:$D$127,0),1) -> 238.86 | G65: =INDEX(' v2-calculos'!$K$31:$K$127,MATCH(C65,' v2-calculos'!$D$31:$D$127,0),1) -> 9.270180556 | H65: =INDEX(' v2-calculos'!$N$31:$N$127,MATCH(C65,' v2-calculos'!$D$31:$D$127,0),1) -> 5 | I65: =INDEX(' v2-calculos'!$O$31:$O$127,MATCH(C65,' v2-calculos'!$D$31:$D$127,0),1) -> 70.6 | J65: =INDEX(' v2-calculos'!$P$31:$P$127,MATCH(C65,' v2-calculos'!$D$31:$D$127,0),1) -> 1527.470181
C66: 52 | D66: =INDEX(' v2-calculos'!$H$31:$H$127,MATCH(C66,' v2-calculos'!$D$31:$D$127,0),1) -> 27780.56 | E66: =INDEX(' v2-calculos'!$I$31:$I$127,MATCH(C66,' v2-calculos'!$D$31:$D$127,0),1) -> 1221.07 | F66: =INDEX(' v2-calculos'!$J$31:$J$127,MATCH(C66,' v2-calculos'!$D$31:$D$127,0),1) -> 221.53 | G66: =INDEX(' v2-calculos'!$K$31:$K$127,MATCH(C66,' v2-calculos'!$D$31:$D$127,0),1) -> 9.270180556 | H66: =INDEX(' v2-calculos'!$N$31:$N$127,MATCH(C66,' v2-calculos'!$D$31:$D$127,0),1) -> 5 | I66: =INDEX(' v2-calculos'!$O$31:$O$127,MATCH(C66,' v2-calculos'!$D$31:$D$127,0),1) -> 70.6 | J66: =INDEX(' v2-calculos'!$P$31:$P$127,MATCH(C66,' v2-calculos'!$D$31:$D$127,0),1) -> 1527.470181
C67: 53 | D67: =INDEX(' v2-calculos'!$H$31:$H$127,MATCH(C67,' v2-calculos'!$D$31:$D$127,0),1) -> 26559.49 | E67: =INDEX(' v2-calculos'!$I$31:$I$127,MATCH(C67,' v2-calculos'!$D$31:$D$127,0),1) -> 1223.72 | F67: =INDEX(' v2-calculos'!$J$31:$J$127,MATCH(C67,' v2-calculos'!$D$31:$D$127,0),1) -> 218.88 | G67: =INDEX(' v2-calculos'!$K$31:$K$127,MATCH(C67,' v2-calculos'!$D$31:$D$127,0),1) -> 9.270180556 | H67: =INDEX(' v2-calculos'!$N$31:$N$127,MATCH(C67,' v2-calculos'!$D$31:$D$127,0),1) -> 5 | I67: =INDEX(' v2-calculos'!$O$31:$O$127,MATCH(C67,' v2-calculos'!$D$31:$D$127,0),1) -> 70.6 | J67: =INDEX(' v2-calculos'!$P$31:$P$127,MATCH(C67,' v2-calculos'!$D$31:$D$127,0),1) -> 1527.470181
C68: 54 | D68: =INDEX(' v2-calculos'!$H$31:$H$127,MATCH(C68,' v2-calculos'!$D$31:$D$127,0),1) -> 25335.77 | E68: =INDEX(' v2-calculos'!$I$31:$I$127,MATCH(C68,' v2-calculos'!$D$31:$D$127,0),1) -> 1240.57 | F68: =INDEX(' v2-calculos'!$J$31:$J$127,MATCH(C68,' v2-calculos'!$D$31:$D$127,0),1) -> 202.03 | G68: =INDEX(' v2-calculos'!$K$31:$K$127,MATCH(C68,' v2-calculos'!$D$31:$D$127,0),1) -> 9.270180556 | H68: =INDEX(' v2-calculos'!$N$31:$N$127,MATCH(C68,' v2-calculos'!$D$31:$D$127,0),1) -> 5 | I68: =INDEX(' v2-calculos'!$O$31:$O$127,MATCH(C68,' v2-calculos'!$D$31:$D$127,0),1) -> 70.6 | J68: =INDEX(' v2-calculos'!$P$31:$P$127,MATCH(C68,' v2-calculos'!$D$31:$D$127,0),1) -> 1527.470181
C69: 55 | D69: =INDEX(' v2-calculos'!$H$31:$H$127,MATCH(C69,' v2-calculos'!$D$31:$D$127,0),1) -> 24095.2 | E69: =INDEX(' v2-calculos'!$I$31:$I$127,MATCH(C69,' v2-calculos'!$D$31:$D$127,0),1) -> 1244.03 | F69: =INDEX(' v2-calculos'!$J$31:$J$127,MATCH(C69,' v2-calculos'!$D$31:$D$127,0),1) -> 198.57 | G69: =INDEX(' v2-calculos'!$K$31:$K$127,MATCH(C69,' v2-calculos'!$D$31:$D$127,0),1) -> 9.270180556 | H69: =INDEX(' v2-calculos'!$N$31:$N$127,MATCH(C69,' v2-calculos'!$D$31:$D$127,0),1) -> 5 | I69: =INDEX(' v2-calculos'!$O$31:$O$127,MATCH(C69,' v2-calculos'!$D$31:$D$127,0),1) -> 70.6 | J69: =INDEX(' v2-calculos'!$P$31:$P$127,MATCH(C69,' v2-calculos'!$D$31:$D$127,0),1) -> 1527.470181
C70: 56 | D70: =INDEX(' v2-calculos'!$H$31:$H$127,MATCH(C70,' v2-calculos'!$D$31:$D$127,0),1) -> 22851.17 | E70: =INDEX(' v2-calculos'!$I$31:$I$127,MATCH(C70,' v2-calculos'!$D$31:$D$127,0),1) -> 1254.28 | F70: =INDEX(' v2-calculos'!$J$31:$J$127,MATCH(C70,' v2-calculos'!$D$31:$D$127,0),1) -> 188.32 | G70: =INDEX(' v2-calculos'!$K$31:$K$127,MATCH(C70,' v2-calculos'!$D$31:$D$127,0),1) -> 9.270180556 | H70: =INDEX(' v2-calculos'!$N$31:$N$127,MATCH(C70,' v2-calculos'!$D$31:$D$127,0),1) -> 5 | I70: =INDEX(' v2-calculos'!$O$31:$O$127,MATCH(C70,' v2-calculos'!$D$31:$D$127,0),1) -> 70.6 | J70: =INDEX(' v2-calculos'!$P$31:$P$127,MATCH(C70,' v2-calculos'!$D$31:$D$127,0),1) -> 1527.470181
C71: 57 | D71: =INDEX(' v2-calculos'!$H$31:$H$127,MATCH(C71,' v2-calculos'!$D$31:$D$127,0),1) -> 21596.89 | E71: =INDEX(' v2-calculos'!$I$31:$I$127,MATCH(C71,' v2-calculos'!$D$31:$D$127,0),1) -> 1270.38 | F71: =INDEX(' v2-calculos'!$J$31:$J$127,MATCH(C71,' v2-calculos'!$D$31:$D$127,0),1) -> 172.22 | G71: =INDEX(' v2-calculos'!$K$31:$K$127,MATCH(C71,' v2-calculos'!$D$31:$D$127,0),1) -> 9.270180556 | H71: =INDEX(' v2-calculos'!$N$31:$N$127,MATCH(C71,' v2-calculos'!$D$31:$D$127,0),1) -> 5 | I71: =INDEX(' v2-calculos'!$O$31:$O$127,MATCH(C71,' v2-calculos'!$D$31:$D$127,0),1) -> 70.6 | J71: =INDEX(' v2-calculos'!$P$31:$P$127,MATCH(C71,' v2-calculos'!$D$31:$D$127,0),1) -> 1527.470181
C72: 58 | D72: =INDEX(' v2-calculos'!$H$31:$H$127,MATCH(C72,' v2-calculos'!$D$31:$D$127,0),1) -> 20326.51 | E72: =INDEX(' v2-calculos'!$I$31:$I$127,MATCH(C72,' v2-calculos'!$D$31:$D$127,0),1) -> 1275.09 | F72: =INDEX(' v2-calculos'!$J$31:$J$127,MATCH(C72,' v2-calculos'!$D$31:$D$127,0),1) -> 167.51 | G72: =INDEX(' v2-calculos'!$K$31:$K$127,MATCH(C72,' v2-calculos'!$D$31:$D$127,0),1) -> 9.270180556 | H72: =INDEX(' v2-calculos'!$N$31:$N$127,MATCH(C72,' v2-calculos'!$D$31:$D$127,0),1) -> 5 | I72: =INDEX(' v2-calculos'!$O$31:$O$127,MATCH(C72,' v2-calculos'!$D$31:$D$127,0),1) -> 70.6 | J72: =INDEX(' v2-calculos'!$P$31:$P$127,MATCH(C72,' v2-calculos'!$D$31:$D$127,0),1) -> 1527.470181
C73: 59 | D73: =INDEX(' v2-calculos'!$H$31:$H$127,MATCH(C73,' v2-calculos'!$D$31:$D$127,0),1) -> 19051.42 | E73: =INDEX(' v2-calculos'!$I$31:$I$127,MATCH(C73,' v2-calculos'!$D$31:$D$127,0),1) -> 1290.68 | F73: =INDEX(' v2-calculos'!$J$31:$J$127,MATCH(C73,' v2-calculos'!$D$31:$D$127,0),1) -> 151.92 | G73: =INDEX(' v2-calculos'!$K$31:$K$127,MATCH(C73,' v2-calculos'!$D$31:$D$127,0),1) -> 9.270180556 | H73: =INDEX(' v2-calculos'!$N$31:$N$127,MATCH(C73,' v2-calculos'!$D$31:$D$127,0),1) -> 5 | I73: =INDEX(' v2-calculos'!$O$31:$O$127,MATCH(C73,' v2-calculos'!$D$31:$D$127,0),1) -> 70.6 | J73: =INDEX(' v2-calculos'!$P$31:$P$127,MATCH(C73,' v2-calculos'!$D$31:$D$127,0),1) -> 1527.470181
C74: 60 | D74: =INDEX(' v2-calculos'!$H$31:$H$127,MATCH(C74,' v2-calculos'!$D$31:$D$127,0),1) -> 17760.74 | E74: =INDEX(' v2-calculos'!$I$31:$I$127,MATCH(C74,' v2-calculos'!$D$31:$D$127,0),1) -> 1296.23 | F74: =INDEX(' v2-calculos'!$J$31:$J$127,MATCH(C74,' v2-calculos'!$D$31:$D$127,0),1) -> 146.37 | G74: =INDEX(' v2-calculos'!$K$31:$K$127,MATCH(C74,' v2-calculos'!$D$31:$D$127,0),1) -> 9.270180556 | H74: =INDEX(' v2-calculos'!$N$31:$N$127,MATCH(C74,' v2-calculos'!$D$31:$D$127,0),1) -> 5 | I74: =INDEX(' v2-calculos'!$O$31:$O$127,MATCH(C74,' v2-calculos'!$D$31:$D$127,0),1) -> 70.6 | J74: =INDEX(' v2-calculos'!$P$31:$P$127,MATCH(C74,' v2-calculos'!$D$31:$D$127,0),1) -> 1527.470181
C75: 61 | D75: =INDEX(' v2-calculos'!$H$31:$H$127,MATCH(C75,' v2-calculos'!$D$31:$D$127,0),1) -> 16464.51 | E75: =INDEX(' v2-calculos'!$I$31:$I$127,MATCH(C75,' v2-calculos'!$D$31:$D$127,0),1) -> 1306.92 | F75: =INDEX(' v2-calculos'!$J$31:$J$127,MATCH(C75,' v2-calculos'!$D$31:$D$127,0),1) -> 135.68 | G75: =INDEX(' v2-calculos'!$K$31:$K$127,MATCH(C75,' v2-calculos'!$D$31:$D$127,0),1) -> 9.270180556 | H75: =INDEX(' v2-calculos'!$N$31:$N$127,MATCH(C75,' v2-calculos'!$D$31:$D$127,0),1) -> 5 | I75: =INDEX(' v2-calculos'!$O$31:$O$127,MATCH(C75,' v2-calculos'!$D$31:$D$127,0),1) -> 70.6 | J75: =INDEX(' v2-calculos'!$P$31:$P$127,MATCH(C75,' v2-calculos'!$D$31:$D$127,0),1) -> 1527.470181
C76: 62 | D76: =INDEX(' v2-calculos'!$H$31:$H$127,MATCH(C76,' v2-calculos'!$D$31:$D$127,0),1) -> 15157.59 | E76: =INDEX(' v2-calculos'!$I$31:$I$127,MATCH(C76,' v2-calculos'!$D$31:$D$127,0),1) -> 1329.82 | F76: =INDEX(' v2-calculos'!$J$31:$J$127,MATCH(C76,' v2-calculos'!$D$31:$D$127,0),1) -> 112.78 | G76: =INDEX(' v2-calculos'!$K$31:$K$127,MATCH(C76,' v2-calculos'!$D$31:$D$127,0),1) -> 9.270180556 | H76: =INDEX(' v2-calculos'!$N$31:$N$127,MATCH(C76,' v2-calculos'!$D$31:$D$127,0),1) -> 5 | I76: =INDEX(' v2-calculos'!$O$31:$O$127,MATCH(C76,' v2-calculos'!$D$31:$D$127,0),1) -> 70.6 | J76: =INDEX(' v2-calculos'!$P$31:$P$127,MATCH(C76,' v2-calculos'!$D$31:$D$127,0),1) -> 1527.470181
C77: 63 | D77: =INDEX(' v2-calculos'!$H$31:$H$127,MATCH(C77,' v2-calculos'!$D$31:$D$127,0),1) -> 13827.77 | E77: =INDEX(' v2-calculos'!$I$31:$I$127,MATCH(C77,' v2-calculos'!$D$31:$D$127,0),1) -> 1328.64 | F77: =INDEX(' v2-calculos'!$J$31:$J$127,MATCH(C77,' v2-calculos'!$D$31:$D$127,0),1) -> 113.96 | G77: =INDEX(' v2-calculos'!$K$31:$K$127,MATCH(C77,' v2-calculos'!$D$31:$D$127,0),1) -> 9.270180556 | H77: =INDEX(' v2-calculos'!$N$31:$N$127,MATCH(C77,' v2-calculos'!$D$31:$D$127,0),1) -> 5 | I77: =INDEX(' v2-calculos'!$O$31:$O$127,MATCH(C77,' v2-calculos'!$D$31:$D$127,0),1) -> 70.6 | J77: =INDEX(' v2-calculos'!$P$31:$P$127,MATCH(C77,' v2-calculos'!$D$31:$D$127,0),1) -> 1527.470181
C78: 64 | D78: =INDEX(' v2-calculos'!$H$31:$H$127,MATCH(C78,' v2-calculos'!$D$31:$D$127,0),1) -> 12499.13 | E78: =INDEX(' v2-calculos'!$I$31:$I$127,MATCH(C78,' v2-calculos'!$D$31:$D$127,0),1) -> 1342.93 | F78: =INDEX(' v2-calculos'!$J$31:$J$127,MATCH(C78,' v2-calculos'!$D$31:$D$127,0),1) -> 99.67 | G78: =INDEX(' v2-calculos'!$K$31:$K$127,MATCH(C78,' v2-calculos'!$D$31:$D$127,0),1) -> 9.270180556 | H78: =INDEX(' v2-calculos'!$N$31:$N$127,MATCH(C78,' v2-calculos'!$D$31:$D$127,0),1) -> 5 | I78: =INDEX(' v2-calculos'!$O$31:$O$127,MATCH(C78,' v2-calculos'!$D$31:$D$127,0),1) -> 70.6 | J78: =INDEX(' v2-calculos'!$P$31:$P$127,MATCH(C78,' v2-calculos'!$D$31:$D$127,0),1) -> 1527.470181
C79: 65 | D79: =INDEX(' v2-calculos'!$H$31:$H$127,MATCH(C79,' v2-calculos'!$D$31:$D$127,0),1) -> 11156.2 | E79: =INDEX(' v2-calculos'!$I$31:$I$127,MATCH(C79,' v2-calculos'!$D$31:$D$127,0),1) -> 1350.66 | F79: =INDEX(' v2-calculos'!$J$31:$J$127,MATCH(C79,' v2-calculos'!$D$31:$D$127,0),1) -> 91.94 | G79: =INDEX(' v2-calculos'!$K$31:$K$127,MATCH(C79,' v2-calculos'!$D$31:$D$127,0),1) -> 9.270180556 | H79: =INDEX(' v2-calculos'!$N$31:$N$127,MATCH(C79,' v2-calculos'!$D$31:$D$127,0),1) -> 5 | I79: =INDEX(' v2-calculos'!$O$31:$O$127,MATCH(C79,' v2-calculos'!$D$31:$D$127,0),1) -> 70.6 | J79: =INDEX(' v2-calculos'!$P$31:$P$127,MATCH(C79,' v2-calculos'!$D$31:$D$127,0),1) -> 1527.470181
C80: 66 | D80: =INDEX(' v2-calculos'!$H$31:$H$127,MATCH(C80,' v2-calculos'!$D$31:$D$127,0),1) -> 9805.54 | E80: =INDEX(' v2-calculos'!$I$31:$I$127,MATCH(C80,' v2-calculos'!$D$31:$D$127,0),1) -> 1364.41 | F80: =INDEX(' v2-calculos'!$J$31:$J$127,MATCH(C80,' v2-calculos'!$D$31:$D$127,0),1) -> 78.19 | G80: =INDEX(' v2-calculos'!$K$31:$K$127,MATCH(C80,' v2-calculos'!$D$31:$D$127,0),1) -> 9.270180556 | H80: =INDEX(' v2-calculos'!$N$31:$N$127,MATCH(C80,' v2-calculos'!$D$31:$D$127,0),1) -> 5 | I80: =INDEX(' v2-calculos'!$O$31:$O$127,MATCH(C80,' v2-calculos'!$D$31:$D$127,0),1) -> 70.6 | J80: =INDEX(' v2-calculos'!$P$31:$P$127,MATCH(C80,' v2-calculos'!$D$31:$D$127,0),1) -> 1527.470181
C81: =C80+1 -> 67 | D81: =INDEX(' v2-calculos'!$H$31:$H$127,MATCH(C81,' v2-calculos'!$D$31:$D$127,0),1) -> 8441.13 | E81: =INDEX(' v2-calculos'!$I$31:$I$127,MATCH(C81,' v2-calculos'!$D$31:$D$127,0),1) -> 1373.04 | F81: =INDEX(' v2-calculos'!$J$31:$J$127,MATCH(C81,' v2-calculos'!$D$31:$D$127,0),1) -> 69.56 | G81: =INDEX(' v2-calculos'!$K$31:$K$127,MATCH(C81,' v2-calculos'!$D$31:$D$127,0),1) -> 9.270180556 | H81: =INDEX(' v2-calculos'!$N$31:$N$127,MATCH(C81,' v2-calculos'!$D$31:$D$127,0),1) -> 5 | I81: =INDEX(' v2-calculos'!$O$31:$O$127,MATCH(C81,' v2-calculos'!$D$31:$D$127,0),1) -> 70.6 | J81: =INDEX(' v2-calculos'!$P$31:$P$127,MATCH(C81,' v2-calculos'!$D$31:$D$127,0),1) -> 1527.470181
C82: 68 | D82: =INDEX(' v2-calculos'!$H$31:$H$127,MATCH(C82,' v2-calculos'!$D$31:$D$127,0),1) -> 7068.09 | E82: =INDEX(' v2-calculos'!$I$31:$I$127,MATCH(C82,' v2-calculos'!$D$31:$D$127,0),1) -> 1384.35 | F82: =INDEX(' v2-calculos'!$J$31:$J$127,MATCH(C82,' v2-calculos'!$D$31:$D$127,0),1) -> 58.25 | G82: =INDEX(' v2-calculos'!$K$31:$K$127,MATCH(C82,' v2-calculos'!$D$31:$D$127,0),1) -> 9.270180556 | H82: =INDEX(' v2-calculos'!$N$31:$N$127,MATCH(C82,' v2-calculos'!$D$31:$D$127,0),1) -> 5 | I82: =INDEX(' v2-calculos'!$O$31:$O$127,MATCH(C82,' v2-calculos'!$D$31:$D$127,0),1) -> 70.6 | J82: =INDEX(' v2-calculos'!$P$31:$P$127,MATCH(C82,' v2-calculos'!$D$31:$D$127,0),1) -> 1527.470181
C83: 69 | D83: =INDEX(' v2-calculos'!$H$31:$H$127,MATCH(C83,' v2-calculos'!$D$31:$D$127,0),1) -> 5683.74 | E83: =INDEX(' v2-calculos'!$I$31:$I$127,MATCH(C83,' v2-calculos'!$D$31:$D$127,0),1) -> 1397.28 | F83: =INDEX(' v2-calculos'!$J$31:$J$127,MATCH(C83,' v2-calculos'!$D$31:$D$127,0),1) -> 45.32 | G83: =INDEX(' v2-calculos'!$K$31:$K$127,MATCH(C83,' v2-calculos'!$D$31:$D$127,0),1) -> 9.270180556 | H83: =INDEX(' v2-calculos'!$N$31:$N$127,MATCH(C83,' v2-calculos'!$D$31:$D$127,0),1) -> 5 | I83: =INDEX(' v2-calculos'!$O$31:$O$127,MATCH(C83,' v2-calculos'!$D$31:$D$127,0),1) -> 70.6 | J83: =INDEX(' v2-calculos'!$P$31:$P$127,MATCH(C83,' v2-calculos'!$D$31:$D$127,0),1) -> 1527.470181
C84: 70 | D84: =INDEX(' v2-calculos'!$H$31:$H$127,MATCH(C84,' v2-calculos'!$D$31:$D$127,0),1) -> 4286.46 | E84: =INDEX(' v2-calculos'!$I$31:$I$127,MATCH(C84,' v2-calculos'!$D$31:$D$127,0),1) -> 1407.28 | F84: =INDEX(' v2-calculos'!$J$31:$J$127,MATCH(C84,' v2-calculos'!$D$31:$D$127,0),1) -> 35.32 | G84: =INDEX(' v2-calculos'!$K$31:$K$127,MATCH(C84,' v2-calculos'!$D$31:$D$127,0),1) -> 9.270180556 | H84: =INDEX(' v2-calculos'!$N$31:$N$127,MATCH(C84,' v2-calculos'!$D$31:$D$127,0),1) -> 5 | I84: =INDEX(' v2-calculos'!$O$31:$O$127,MATCH(C84,' v2-calculos'!$D$31:$D$127,0),1) -> 70.6 | J84: =INDEX(' v2-calculos'!$P$31:$P$127,MATCH(C84,' v2-calculos'!$D$31:$D$127,0),1) -> 1527.470181
C85: 71 | D85: =INDEX(' v2-calculos'!$H$31:$H$127,MATCH(C85,' v2-calculos'!$D$31:$D$127,0),1) -> 2879.18 | E85: =INDEX(' v2-calculos'!$I$31:$I$127,MATCH(C85,' v2-calculos'!$D$31:$D$127,0),1) -> 1419.64 | F85: =INDEX(' v2-calculos'!$J$31:$J$127,MATCH(C85,' v2-calculos'!$D$31:$D$127,0),1) -> 22.96 | G85: =INDEX(' v2-calculos'!$K$31:$K$127,MATCH(C85,' v2-calculos'!$D$31:$D$127,0),1) -> 9.270180556 | H85: =INDEX(' v2-calculos'!$N$31:$N$127,MATCH(C85,' v2-calculos'!$D$31:$D$127,0),1) -> 5 | I85: =INDEX(' v2-calculos'!$O$31:$O$127,MATCH(C85,' v2-calculos'!$D$31:$D$127,0),1) -> 70.6 | J85: =INDEX(' v2-calculos'!$P$31:$P$127,MATCH(C85,' v2-calculos'!$D$31:$D$127,0),1) -> 1527.470181
C86: 72 | D86: =INDEX(' v2-calculos'!$H$31:$H$127,MATCH(C86,' v2-calculos'!$D$31:$D$127,0),1) -> 1459.54 | E86: =INDEX(' v2-calculos'!$I$31:$I$127,MATCH(C86,' v2-calculos'!$D$31:$D$127,0),1) -> 1459.54 | F86: =INDEX(' v2-calculos'!$J$31:$J$127,MATCH(C86,' v2-calculos'!$D$31:$D$127,0),1) -> 12.03 | G86: =INDEX(' v2-calculos'!$K$31:$K$127,MATCH(C86,' v2-calculos'!$D$31:$D$127,0),1) -> 9.270180556 | H86: =INDEX(' v2-calculos'!$N$31:$N$127,MATCH(C86,' v2-calculos'!$D$31:$D$127,0),1) -> 5 | I86: =INDEX(' v2-calculos'!$O$31:$O$127,MATCH(C86,' v2-calculos'!$D$31:$D$127,0),1) -> 70.6 | J86: =INDEX(' v2-calculos'!$P$31:$P$127,MATCH(C86,' v2-calculos'!$D$31:$D$127,0),1) -> 1556.440181
